Workbook

Sheet Январь
P1: Январь | X1: Экономия | Y1: Базовая норма расхода на 100 км | Z1: Базовая норма расхода на 1 мото/час
A2: Общество с ограниченной ответственностью "Втормет Царицыно" | R2: 1-я пол. | S2: 2018-01-01 | T2: 2018-01-18 | U2: 350 | V2: 0 | W2: 0 | X2: 0 | Y2: 46.86 | Z2: 5.5
A3: Отчет водителя ломовоза с манипулятором | R3: 2-я пол. | S3: 2018-01-19 | T3: 2018-01-31 | U3: 350 | V3: 920 | W3: 0 | X3: 0
H4: за | I4: 2018 | O4: с 504 уо 777 | Y4: Зима | Z4: Норма 1
A6: Дата | B6: ФИО водителя | C6: Показание одометра машины на начало дня, км | D6: Показание одометра машины на конец дня, км | E6: Пройдено за день, км | F6: Выдано топливо, литр | G6: Остаток топлива в баке на начало дня, литр | H6: Показание счетчика моточасов спецоборудования на начало дня, м/ч | I6: Показание счетчика моточасов спецоборудования на конец дня, м/ч | J6: Работа спецоборудования за день, м/ч | K6: Количество ходок | L6: Расход топлива на работу спецоборудования, литр | M6: Остаток топлива в баке на конец дня, литр | N6: Расход топлива по норме, литр | O6: Фактический расход топлива, литр | P6: Отклонение от нормы (Перерасход(+), экономия(-)), литр | R6: Дата | S6: Обнуление одометра, км | T6: Пройдено за день, км | U6: Выдано топливо, литр | V6: Обнуление счетчика моточасов спецоборудования, м/ч | W6: Работа спецоборудования за день, м/ч | X6: Расход топлива по норме, литр | Y6: Фактический расход топлива, литр | Z6: Дата
A7: 2018-01-01 | C7: 23190 | D7: 23190 | E7: 0 | F7: 0 | G7: 350 | H7: 1306 | I7: 1306 | J7: 0 | L7: 0 | M7: 350 | N7: 0 | O7: 0 | P7: 0 | R7: 2018-01-01 | Z7: 2018-01-01
A8: 2018-01-02 | C8: 23190 | D8: 23190 | E8: 0 | F8: 0 | G8: 350 | H8: 1306 | I8: 1306 | J8: 0 | L8: 0 | M8: 350 | N8: 0 | O8: 0 | P8: 0 | R8: 2018-01-02 | Z8: 2018-01-02
A9: 2018-01-03 | C9: 23190 | D9: 23190 | E9: 0 | F9: 0 | G9: 350 | H9: 1306 | I9: 1306 | J9: 0 | L9: 0 | M9: 350 | N9: 0 | O9: 0 | P9: 0 | R9: 2018-01-03 | Z9: 2018-01-03
A10: 2018-01-04 | C10: 23190 | D10: 23190 | E10: 0 | F10: 0 | G10: 350 | H10: 1306 | I10: 1306 | J10: 0 | L10: 0 | M10: 350 | N10: 0 | O10: 0 | P10: 0 | R10: 2018-01-04 | Z10: 2018-01-04
A11: 2018-01-05 | C11: 23190 | D11: 23190 | E11: 0 | F11: 0 | G11: 350 | H11: 1306 | I11: 1306 | J11: 0 | L11: 0 | M11: 350 | N11: 0 | O11: 0 | P11: 0 | R11: 2018-01-05 | Z11: 2018-01-05
A12: 2018-01-06 | C12: 23190 | D12: 23190 | E12: 0 | F12: 0 | G12: 350 | H12: 1306 | I12: 1306 | J12: 0 | L12: 0 | M12: 350 | N12: 0 | O12: 0 | P12: 0 | R12: 2018-01-06 | Z12: 2018-01-06
A13: 2018-01-07 | C13: 23190 | D13: 23190 | E13: 0 | F13: 0 | G13: 350 | H13: 1306 | I13: 1306 | J13: 0 | L13: 0 | M13: 350 | N13: 0 | O13: 0 | P13: 0 | R13: 2018-01-07 | Z13: 2018-01-07
A14: 2018-01-08 | C14: 23190 | D14: 23190 | E14: 0 | F14: 0 | G14: 350 | H14: 1306 | I14: 1306 | J14: 0 | L14: 0 | M14: 350 | N14: 0 | O14: 0 | P14: 0 | R14: 2018-01-08 | Z14: 2018-01-08
A15: 2018-01-09 | C15: 23190 | D15: 23190 | E15: 0 | F15: 0 | G15: 350 | H15: 1306 | I15: 1306 | J15: 0 | L15: 0 | M15: 350 | N15: 0 | O15: 0 | P15: 0 | R15: 2018-01-09 | Z15: 2018-01-09
A16: 2018-01-10 | C16: 23190 | D16: 23190 | E16: 0 | F16: 0 | G16: 350 | H16: 1306 | I16: 1306 | J16: 0 | L16: 0 | M16: 350 | N16: 0 | O16: 0 | P16: 0 | R16: 2018-01-10 | Z16: 2018-01-10
A17: 2018-01-11 | C17: 23190 | D17: 23190 | E17: 0 | F17: 0 | G17: 350 | H17: 1306 | I17: 1306 | J17: 0 | L17: 0 | M17: 350 | N17: 0 | O17: 0 | P17: 0 | R17: 2018-01-11 | Z17: 2018-01-11
A18: 2018-01-12 | C18: 23190 | D18: 23190 | E18: 0 | F18: 0 | G18: 350 | H18: 1306 | I18: 1306 | J18: 0 | L18: 0 | M18: 350 | N18: 0 | O18: 0 | P18: 0 | R18: 2018-01-12 | Z18: 2018-01-12
A19: 2018-01-13 | C19: 23190 | D19: 23190 | E19: 0 | F19: 0 | G19: 350 | H19: 1306 | I19: 1306 | J19: 0 | L19: 0 | M19: 350 | N19: 0 | O19: 0 | P19: 0 | R19: 2018-01-13 | Z19: 2018-01-13
A20: 2018-01-14 | C20: 23190 | D20: 23190 | E20: 0 | F20: 0 | G20: 350 | H20: 1306 | I20: 1306 | J20: 0 | L20: 0 | M20: 350 | N20: 0 | O20: 0 | P20: 0 | R20: 2018-01-14 | Z20: 2018-01-14
A21: 2018-01-15 | C21: 23190 | D21: 23190 | E21: 0 | F21: 0 | G21: 350 | H21: 1306 | I21: 1306 | J21: 0 | L21: 0 | M21: 350 | N21: 0 | O21: 0 | P21: 0 | R21: 2018-01-15 | Z21: 2018-01-15
A22: 2018-01-16 | C22: 23190 | D22: 23190 | E22: 0 | F22: 0 | G22: 350 | H22: 1306 | I22: 1306 | J22: 0 | L22: 0 | M22: 350 | N22: 0 | O22: 0 | P22: 0 | R22: 2018-01-16 | Z22: 2018-01-16
A23: 2018-01-17 | C23: 23190 | D23: 23190 | E23: 0 | F23: 0 | G23: 350 | H23: 1306 | I23: 1306 | J23: 0 | L23: 0 | M23: 350 | N23: 0 | O23: 0 | P23: 0 | R23: 2018-01-17 | Z23: 2018-01-17
A24: 2018-01-18 | C24: 23190 | D24: 23190 | E24: 0 | F24: 0 | G24: 350 | H24: 1306 | I24: 1306 | J24: 0 | L24: 0 | M24: 350 | N24: 0 | O24: 0 | P24: 0 | R24: 2018-01-18 | Z24: 2018-01-18
A25: 2018-01-19 | C25: 23190 | D25: 23190 | E25: 0 | F25: 0 | G25: 350 | H25: 1306 | I25: 1306 | J25: 0 | L25: 0 | M25: 350 | N25: 0 | O25: 0 | P25: 0 | R25: 2018-01-19 | Z25: 2018-01-19
A26: 2018-01-20 | C26: 23190 | D26: 23190 | E26: 0 | F26: 0 | G26: 350 | H26: 1306 | I26: 1306 | J26: 0 | L26: 0 | M26: 350 | N26: 0 | O26: 0 | P26: 0 | R26: 2018-01-20 | Z26: 2018-01-20
A27: 2018-01-21 | C27: 23190 | D27: 23190 | E27: 0 | F27: 0 | G27: 350 | H27: 1306 | I27: 1306 | J27: 0 | L27: 0 | M27: 350 | N27: 0 | O27: 0 | P27: 0 | R27: 2018-01-21 | Z27: 2018-01-21
A28: 2018-01-22 | C28: 23190 | D28: 23190 | E28: 0 | F28: 0 | G28: 350 | H28: 1306 | I28: 1306 | J28: 0 | L28: 0 | M28: 350 | N28: 0 | O28: 0 | P28: 0 | R28: 2018-01-22 | Z28: 2018-01-22
A29: 2018-01-23 | C29: 23190 | D29: 23190 | E29: 0 | F29: 0 | G29: 350 | H29: 1306 | I29: 1306 | J29: 0 | L29: 0 | M29: 350 | N29: 0 | O29: 0 | P29: 0 | R29: 2018-01-23 | Z29: 2018-01-23
A30: 2018-01-24 | C30: 23190 | D30: 23190 | E30: 0 | F30: 280 | G30: 350 | H30: 1306 | I30: 1306 | J30: 0 | L30: 0 | M30: 630 | N30: 0 | O30: 0 | P30: 0 | R30: 2018-01-24 | Z30: 2018-01-24
A31: 2018-01-25 | C31: 23190 | D31: 23190 | E31: 0 | F31: 0 | G31: 630 | H31: 1306 | I31: 1306 | J31: 0 | L31: 0 | M31: 630 | N31: 0 | O31: 0 | P31: 0 | R31: 2018-01-25 | Z31: 2018-01-25
A32: 2018-01-26 | C32: 23190 | D32: 23190 | E32: 0 | F32: 0 | G32: 630 | H32: 1306 | I32: 1306 | J32: 0 | L32: 0 | M32: 630 | N32: 0 | O32: 0 | P32: 0 | R32: 2018-01-26 | Z32: 2018-01-26
A33: 2018-01-27 | C33: 23190 | D33: 23190 | E33: 0 | F33: 310 | G33: 630 | H33: 1306 | I33: 1306 | J33: 0 | L33: 0 | M33: 940 | N33: 0 | O33: 0 | P33: 0 | R33: 2018-01-27 | Z33: 2018-01-27
A34: 2018-01-28 | C34: 23190 | D34: 23190 | E34: 0 | F34: 0 | G34: 940 | H34: 1306 | I34: 1306 | J34: 0 | L34: 0 | M34: 940 | N34: 0 | O34: 0 | P34: 0 | R34: 2018-01-28 | Z34: 2018-01-28
A35: 2018-01-29 | C35: 23190 | D35: 23190 | E35: 0 | F35: 0 | G35: 940 | H35: 1306 | I35: 1306 | J35: 0 | L35: 0 | M35: 940 | N35: 0 | O35: 0 | P35: 0 | R35: 2018-01-29 | Z35: 2018-01-29
A36: 2018-01-30 | C36: 23190 | D36: 23190 | E36: 0 | F36: 280 | G36: 940 | H36: 1306 | I36: 1306 | J36: 0 | L36: 0 | M36: 1220 | N36: 0 | O36: 0 | P36: 0 | R36: 2018-01-30 | Z36: 2018-01-30
A37: 2018-01-31 | C37: 23190 | D37: 23190 | E37: 0 | F37: 50 | G37: 1220 | H37: 1306 | I37: 1306 | J37: 0 | L37: 0 | M37: 1270 | N37: 0 | O37: 0 | P37: 0 | R37: 2018-01-31 | Z37: 2018-01-31
A38: Итог | E38: 0 | F38: 920 | J38: 0 | K38: 0 | L38: 0 | N38: 0 | O38: 0 | P38: 0 | R38: 1-я пол. | S38: 0 | T38: 0 | U38: 0 | V38: 0 | W38: 0 | X38: 0 | Y38: 0 | Z38: 1-я пол.
K39: 0 | R39: 2-я пол. | S39: 0 | T39: 0 | U39: 0 | V39: 0 | W39: 0 | X39: 0 | Y39: 0 | Z39: 2-я пол.
K40: 0

Sheet Февраль
P1: Февраль | X1: Экономия | Y1: Базовая норма расхода на 100 км | Z1: Базовая норма расхода на 1 мото/час
A2: Общество с ограниченной ответственностью "Втормет Царицыно" | R2: 1-я пол. | S2: 2018-02-01 | T2: 2018-02-15 | U2: 350 | V2: 0 | W2: 0 | X2: 0 | Y2: 46.86 | Z2: 5.5
A3: Отчет водителя ломовоза с манипулятором | R3: 2-я пол. | S3: 2018-02-16 | T3: 2018-02-28 | U3: 350 | V3: 810 | W3: 0 | X3: 0
H4: за | I4: 2018 | O4: с 504 уо 777 | Y4: Зима | Z4: Норма 1
A6: Дата | B6: ФИО водителя | C6: Показание одометра машины на начало дня, км | D6: Показание одометра машины на конец дня, км | E6: Пройдено за день, км | F6: Выдано топливо, литр | G6: Остаток топлива в баке на начало дня, литр | H6: Показание счетчика моточасов спецоборудования на начало дня, м/ч | I6: Показание счетчика моточасов спецоборудования на конец дня, м/ч | J6: Работа спецоборудования за день, м/ч | K6: Количество ходок | L6: Расход топлива на работу спецоборудования, литр | M6: Остаток топлива в баке на конец дня, литр | N6: Расход топлива по норме, литр | O6: Фактический расход топлива, литр | P6: Отклонение от нормы (Перерасход(+), экономия(-)), литр | R6: Дата | S6: Обнуление одометра, км | T6: Пройдено за день, км | U6: Выдано топливо, литр | V6: Обнуление счетчика моточасов спецоборудования, м/ч | W6: Работа спецоборудования за день, м/ч | X6: Расход топлива по норме, литр | Y6: Фактический расход топлива, литр | Z6: Дата
A7: 2018-02-01 | C7: 23190 | D7: 23190 | E7: 0 | F7: 0 | G7: 350 | H7: 1306 | I7: 1306 | J7: 0 | L7: 0 | M7: 350 | N7: 0 | O7: 0 | P7: 0 | R7: 2018-02-01 | Z7: 2018-02-01
A8: 2018-02-02 | C8: 23190 | D8: 23190 | E8: 0 | F8: 0 | G8: 350 | H8: 1306 | I8: 1306 | J8: 0 | L8: 0 | M8: 350 | N8: 0 | O8: 0 | P8: 0 | R8: 2018-02-02 | Z8: 2018-02-02
A9: 2018-02-03 | C9: 23190 | D9: 23190 | E9: 0 | F9: 0 | G9: 350 | H9: 1306 | I9: 1306 | J9: 0 | L9: 0 | M9: 350 | N9: 0 | O9: 0 | P9: 0 | R9: 2018-02-03 | Z9: 2018-02-03
A10: 2018-02-04 | C10: 23190 | D10: 23190 | E10: 0 | F10: 0 | G10: 350 | H10: 1306 | I10: 1306 | J10: 0 | L10: 0 | M10: 350 | N10: 0 | O10: 0 | P10: 0 | R10: 2018-02-04 | Z10: 2018-02-04
A11: 2018-02-05 | C11: 23190 | D11: 23190 | E11: 0 | F11: 0 | G11: 350 | H11: 1306 | I11: 1306 | J11: 0 | L11: 0 | M11: 350 | N11: 0 | O11: 0 | P11: 0 | R11: 2018-02-05 | Z11: 2018-02-05
A12: 2018-02-06 | C12: 23190 | D12: 23190 | E12: 0 | F12: 0 | G12: 350 | H12: 1306 | I12: 1306 | J12: 0 | L12: 0 | M12: 350 | N12: 0 | O12: 0 | P12: 0 | R12: 2018-02-06 | Z12: 2018-02-06
A13: 2018-02-07 | C13: 23190 | D13: 23190 | E13: 0 | F13: 0 | G13: 350 | H13: 1306 | I13: 1306 | J13: 0 | L13: 0 | M13: 350 | N13: 0 | O13: 0 | P13: 0 | R13: 2018-02-07 | Z13: 2018-02-07
A14: 2018-02-08 | C14: 23190 | D14: 23190 | E14: 0 | F14: 0 | G14: 350 | H14: 1306 | I14: 1306 | J14: 0 | L14: 0 | M14: 350 | N14: 0 | O14: 0 | P14: 0 | R14: 2018-02-08 | Z14: 2018-02-08
A15: 2018-02-09 | C15: 23190 | D15: 23190 | E15: 0 | F15: 0 | G15: 350 | H15: 1306 | I15: 1306 | J15: 0 | L15: 0 | M15: 350 | N15: 0 | O15: 0 | P15: 0 | R15: 2018-02-09 | Z15: 2018-02-09
A16: 2018-02-10 | C16: 23190 | D16: 23190 | E16: 0 | F16: 0 | G16: 350 | H16: 1306 | I16: 1306 | J16: 0 | L16: 0 | M16: 350 | N16: 0 | O16: 0 | P16: 0 | R16: 2018-02-10 | Z16: 2018-02-10
A17: 2018-02-11 | C17: 23190 | D17: 23190 | E17: 0 | F17: 0 | G17: 350 | H17: 1306 | I17: 1306 | J17: 0 | L17: 0 | M17: 350 | N17: 0 | O17: 0 | P17: 0 | R17: 2018-02-11 | Z17: 2018-02-11
A18: 2018-02-12 | C18: 23190 | D18: 23190 | E18: 0 | F18: 0 | G18: 350 | H18: 1306 | I18: 1306 | J18: 0 | L18: 0 | M18: 350 | N18: 0 | O18: 0 | P18: 0 | R18: 2018-02-12 | Z18: 2018-02-12
A19: 2018-02-13 | C19: 23190 | D19: 23190 | E19: 0 | F19: 0 | G19: 350 | H19: 1306 | I19: 1306 | J19: 0 | L19: 0 | M19: 350 | N19: 0 | O19: 0 | P19: 0 | R19: 2018-02-13 | Z19: 2018-02-13
A20: 2018-02-14 | C20: 23190 | D20: 23190 | E20: 0 | F20: 0 | G20: 350 | H20: 1306 | I20: 1306 | J20: 0 | L20: 0 | M20: 350 | N20: 0 | O20: 0 | P20: 0 | R20: 2018-02-14 | Z20: 2018-02-14
A21: 2018-02-15 | C21: 23190 | D21: 23190 | E21: 0 | F21: 0 | G21: 350 | H21: 1306 | I21: 1306 | J21: 0 | L21: 0 | M21: 350 | N21: 0 | O21: 0 | P21: 0 | R21: 2018-02-15 | Z21: 2018-02-15
A22: 2018-02-16 | C22: 23190 | D22: 23190 | E22: 0 | F22: 0 | G22: 350 | H22: 1306 | I22: 1306 | J22: 0 | L22: 0 | M22: 350 | N22: 0 | O22: 0 | P22: 0 | R22: 2018-02-16 | Z22: 2018-02-16
A23: 2018-02-17 | C23: 23190 | D23: 23190 | E23: 0 | F23: 0 | G23: 350 | H23: 1306 | I23: 1306 | J23: 0 | L23: 0 | M23: 350 | N23: 0 | O23: 0 | P23: 0 | R23: 2018-02-17 | Z23: 2018-02-17
A24: 2018-02-18 | C24: 23190 | D24: 23190 | E24: 0 | F24: 0 | G24: 350 | H24: 1306 | I24: 1306 | J24: 0 | L24: 0 | M24: 350 | N24: 0 | O24: 0 | P24: 0 | R24: 2018-02-18 | Z24: 2018-02-18
A25: 2018-02-19 | C25: 23190 | D25: 23190 | E25: 0 | F25: 280 | G25: 350 | H25: 1306 | I25: 1306 | J25: 0 | L25: 0 | M25: 630 | N25: 0 | O25: 0 | P25: 0 | R25: 2018-02-19 | Z25: 2018-02-19
A26: 2018-02-20 | C26: 23190 | D26: 23190 | E26: 0 | F26: 0 | G26: 630 | H26: 1306 | I26: 1306 | J26: 0 | L26: 0 | M26: 630 | N26: 0 | O26: 0 | P26: 0 | R26: 2018-02-20 | Z26: 2018-02-20
A27: 2018-02-21 | C27: 23190 | D27: 23190 | E27: 0 | F27: 0 | G27: 630 | H27: 1306 | I27: 1306 | J27: 0 | L27: 0 | M27: 630 | N27: 0 | O27: 0 | P27: 0 | R27: 2018-02-21 | Z27: 2018-02-21
A28: 2018-02-22 | C28: 23190 | D28: 23190 | E28: 0 | F28: 240 | G28: 630 | H28: 1306 | I28: 1306 | J28: 0 | L28: 0 | M28: 870 | N28: 0 | O28: 0 | P28: 0 | R28: 2018-02-22 | Z28: 2018-02-22
A29: 2018-02-23 | C29: 23190 | D29: 23190 | E29: 0 | F29: 0 | G29: 870 | H29: 1306 | I29: 1306 | J29: 0 | L29: 0 | M29: 870 | N29: 0 | O29: 0 | P29: 0 | R29: 2018-02-23 | Z29: 2018-02-23
A30: 2018-02-24 | C30: 23190 | D30: 23190 | E30: 0 | F30: 0 | G30: 870 | H30: 1306 | I30: 1306 | J30: 0 | L30: 0 | M30: 870 | N30: 0 | O30: 0 | P30: 0 | R30: 2018-02-24 | Z30: 2018-02-24
A31: 2018-02-25 | C31: 23190 | D31: 23190 | E31: 0 | F31: 0 | G31: 870 | H31: 1306 | I31: 1306 | J31: 0 | L31: 0 | M31: 870 | N31: 0 | O31: 0 | P31: 0 | R31: 2018-02-25 | Z31: 2018-02-25
A32: 2018-02-26 | C32: 23190 | D32: 23190 | E32: 0 | F32: 0 | G32: 870 | H32: 1306 | I32: 1306 | J32: 0 | L32: 0 | M32: 870 | N32: 0 | O32: 0 | P32: 0 | R32: 2018-02-26 | Z32: 2018-02-26
A33: 2018-02-27 | C33: 23190 | D33: 23190 | E33: 0 | F33: 0 | G33: 870 | H33: 1306 | I33: 1306 | J33: 0 | L33: 0 | M33: 870 | N33: 0 | O33: 0 | P33: 0 | R33: 2018-02-27 | Z33: 2018-02-27
A34: 2018-02-28 | C34: 23190 | D34: 23190 | E34: 0 | F34: 290 | G34: 870 | H34: 1306 | I34: 1306 | J34: 0 | L34: 0 | M34: 1160 | N34: 0 | O34: 0 | P34: 0 | R34: 2018-02-28 | Z34: 2018-02-28
A38: Итог | E38: 0 | F38: 810 | J38: 0 | K38: 0 | L38: 0 | N38: 0 | O38: 0 | P38: 0 | R38: 1-я пол. | S38: 0 | T38: 0 | U38: 0 | V38: 0 | W38: 0 | X38: 0 | Y38: 0 | Z38: 1-я пол.
K39: 0 | R39: 2-я пол. | S39: 0 | T39: 0 | U39: 0 | V39: 0 | W39: 0 | X39: 0 | Y39: 0 | Z39: 2-я пол.
K40: 0

Sheet Март
P1: Март | X1: Экономия | Y1: Базовая норма расхода на 100 км | Z1: Базовая норма расхода на 1 мото/час
A2: Общество с ограниченной ответственностью "Втормет Царицыно" | R2: 1-я пол. | S2: 2018-03-01 | T2: 2018-03-15 | U2: 350 | V2: 0 | W2: 0 | X2: 0 | Y2: 46.86 | Z2: 5.5
A3: Отчет водителя ломовоза с манипулятором | R3: 2-я пол. | S3: 2018-03-16 | T3: 2018-03-31 | U3: 350 | V3: 917 | W3: 0.4014460196 | X3: 198.874
H4: за | I4: 2018 | O4: с 504 уо 777 | Y4: Зима | Z4: Норма 1
A6: Дата | B6: ФИО водителя | C6: Показание одометра машины на начало дня, км | D6: Показание одометра машины на конец дня, км | E6: Пройдено за день, км | F6: Выдано топливо, литр | G6: Остаток топлива в баке на начало дня, литр | H6: Показание счетчика моточасов спецоборудования на начало дня, м/ч | I6: Показание счетчика моточасов спецоборудования на конец дня, м/ч | J6: Работа спецоборудования за день, м/ч | K6: Количество ходок | L6: Расход топлива на работу спецоборудования, литр | M6: Остаток топлива в баке на конец дня, литр | N6: Расход топлива по норме, литр | O6: Фактический расход топлива, литр | P6: Отклонение от нормы (Перерасход(+), экономия(-)), литр | R6: Дата | S6: Обнуление одометра, км | T6: Пройдено за день, км | U6: Выдано топливо, литр | V6: Обнуление счетчика моточасов спецоборудования, м/ч | W6: Работа спецоборудования за день, м/ч | X6: Расход топлива по норме, литр | Y6: Фактический расход топлива, литр | Z6: Дата
A7: 2018-03-01 | C7: 23190 | D7: 23190 | E7: 0 | F7: 0 | G7: 350 | H7: 1306 | I7: 1306 | J7: 0 | L7: 0 | M7: 350 | N7: 0 | O7: 0 | P7: 0 | R7: 2018-03-01 | Z7: 2018-03-01
A8: 2018-03-02 | C8: 23190 | D8: 23190 | E8: 0 | F8: 0 | G8: 350 | H8: 1306 | I8: 1306 | J8: 0 | L8: 0 | M8: 350 | N8: 0 | O8: 0 | P8: 0 | R8: 2018-03-02 | Z8: 2018-03-02
A9: 2018-03-03 | C9: 23190 | D9: 23190 | E9: 0 | F9: 0 | G9: 350 | H9: 1306 | I9: 1306 | J9: 0 | L9: 0 | M9: 350 | N9: 0 | O9: 0 | P9: 0 | R9: 2018-03-03 | Z9: 2018-03-03
A10: 2018-03-04 | C10: 23190 | D10: 23190 | E10: 0 | F10: 0 | G10: 350 | H10: 1306 | I10: 1306 | J10: 0 | L10: 0 | M10: 350 | N10: 0 | O10: 0 | P10: 0 | R10: 2018-03-04 | Z10: 2018-03-04
A11: 2018-03-05 | C11: 23190 | D11: 23190 | E11: 0 | F11: 0 | G11: 350 | H11: 1306 | I11: 1306 | J11: 0 | L11: 0 | M11: 350 | N11: 0 | O11: 0 | P11: 0 | R11: 2018-03-05 | Z11: 2018-03-05
A12: 2018-03-06 | C12: 23190 | D12: 23190 | E12: 0 | F12: 0 | G12: 350 | H12: 1306 | I12: 1306 | J12: 0 | L12: 0 | M12: 350 | N12: 0 | O12: 0 | P12: 0 | R12: 2018-03-06 | Z12: 2018-03-06
A13: 2018-03-07 | C13: 23190 | D13: 23190 | E13: 0 | F13: 0 | G13: 350 | H13: 1306 | I13: 1306 | J13: 0 | L13: 0 | M13: 350 | N13: 0 | O13: 0 | P13: 0 | R13: 2018-03-07 | Z13: 2018-03-07
A14: 2018-03-08 | C14: 23190 | D14: 23190 | E14: 0 | F14: 0 | G14: 350 | H14: 1306 | I14: 1306 | J14: 0 | L14: 0 | M14: 350 | N14: 0 | O14: 0 | P14: 0 | R14: 2018-03-08 | Z14: 2018-03-08
A15: 2018-03-09 | C15: 23190 | D15: 23190 | E15: 0 | F15: 0 | G15: 350 | H15: 1306 | I15: 1306 | J15: 0 | L15: 0 | M15: 350 | N15: 0 | O15: 0 | P15: 0 | R15: 2018-03-09 | Z15: 2018-03-09
A16: 2018-03-10 | C16: 23190 | D16: 23190 | E16: 0 | F16: 0 | G16: 350 | H16: 1306 | I16: 1306 | J16: 0 | L16: 0 | M16: 350 | N16: 0 | O16: 0 | P16: 0 | R16: 2018-03-10 | Z16: 2018-03-10
A17: 2018-03-11 | C17: 23190 | D17: 23190 | E17: 0 | F17: 0 | G17: 350 | H17: 1306 | I17: 1306 | J17: 0 | L17: 0 | M17: 350 | N17: 0 | O17: 0 | P17: 0 | R17: 2018-03-11 | Z17: 2018-03-11
A18: 2018-03-12 | C18: 23190 | D18: 23190 | E18: 0 | F18: 0 | G18: 350 | H18: 1306 | I18: 1306 | J18: 0 | L18: 0 | M18: 350 | N18: 0 | O18: 0 | P18: 0 | R18: 2018-03-12 | Z18: 2018-03-12
A19: 2018-03-13 | C19: 23190 | D19: 23190 | E19: 0 | F19: 0 | G19: 350 | H19: 1306 | I19: 1306 | J19: 0 | L19: 0 | M19: 350 | N19: 0 | O19: 0 | P19: 0 | R19: 2018-03-13 | Z19: 2018-03-13
A20: 2018-03-14 | C20: 23190 | D20: 23190 | E20: 0 | F20: 0 | G20: 350 | H20: 1306 | I20: 1306 | J20: 0 | L20: 0 | M20: 350 | N20: 0 | O20: 0 | P20: 0 | R20: 2018-03-14 | Z20: 2018-03-14
A21: 2018-03-15 | C21: 23190 | D21: 23190 | E21: 0 | F21: 0 | G21: 350 | H21: 1306 | I21: 1306 | J21: 0 | L21: 0 | M21: 350 | N21: 0 | O21: 0 | P21: 0 | R21: 2018-03-15 | Z21: 2018-03-15
A22: 2018-03-16 | C22: 23190 | D22: 23190 | E22: 0 | F22: 0 | G22: 350 | H22: 1306 | I22: 1306 | J22: 0 | K22: 3 | L22: 0 | M22: 350 | N22: 0 | O22: 0 | P22: 0 | R22: 2018-03-16 | Z22: 2018-03-16
A23: 2018-03-17 | C23: 23190 | D23: 23190 | E23: 0 | F23: 0 | G23: 350 | H23: 1306 | I23: 1306 | J23: 0 | K23: 3 | L23: 0 | M23: 350 | N23: 0 | O23: 0 | P23: 0 | R23: 2018-03-17 | Z23: 2018-03-17
A24: 2018-03-18 | C24: 23190 | D24: 23190 | E24: 0 | F24: 0 | G24: 350 | H24: 1306 | I24: 1306 | J24: 0 | K24: 3 | L24: 0 | M24: 350 | N24: 0 | O24: 0 | P24: 0 | R24: 2018-03-18 | Z24: 2018-03-18
A25: 2018-03-19 | C25: 23190 | D25: 23190 | E25: 0 | F25: 0 | G25: 350 | H25: 1306 | I25: 1306 | J25: 0 | K25: 1 | L25: 0 | M25: 350 | N25: 0 | O25: 0 | P25: 0 | R25: 2018-03-19 | Z25: 2018-03-19
A26: 2018-03-20 | C26: 23190 | D26: 23190 | E26: 0 | F26: 280 | G26: 350 | H26: 1306 | I26: 1306 | J26: 0 | K26: 2 | L26: 0 | M26: 350 | N26: 0 | O26: 0 | P26: 0 | R26: 2018-03-20 | U26: -280 | Z26: 2018-03-20
A27: 2018-03-21 | C27: 23190 | D27: 23190 | E27: 0 | F27: 0 | G27: 350 | H27: 1306 | I27: 1306 | J27: 0 | K27: 2 | L27: 0 | M27: 350 | N27: 0 | O27: 0 | P27: 0 | R27: 2018-03-21 | Z27: 2018-03-21
A28: 2018-03-22 | C28: 23190 | D28: 23190 | E28: 0 | F28: 0 | G28: 350 | H28: 1306 | I28: 1306 | J28: 0 | K28: 2 | L28: 0 | M28: 350 | N28: 0 | O28: 0 | P28: 0 | R28: 2018-03-22 | Z28: 2018-03-22
A29: 2018-03-23 | C29: 23190 | D29: 23190 | E29: 0 | F29: 0 | G29: 350 | H29: 1306 | I29: 1306 | J29: 0 | K29: 2 | L29: 0 | M29: 350 | N29: 0 | O29: 0 | P29: 0 | R29: 2018-03-23 | Z29: 2018-03-23
A30: 2018-03-24 | C30: 23190 | D30: 23190 | E30: 0 | F30: 0 | G30: 350 | H30: 1306 | I30: 1306 | J30: 0 | K30: 1 | L30: 0 | M30: 350 | N30: 0 | O30: 0 | P30: 0 | R30: 2018-03-24 | Z30: 2018-03-24
A31: 2018-03-25 | C31: 23190 | D31: 23190 | E31: 0 | F31: 0 | G31: 350 | H31: 1306 | I31: 1306 | J31: 0 | K31: 3 | L31: 0 | M31: 350 | N31: 0 | O31: 0 | P31: 0 | R31: 2018-03-25 | Z31: 2018-03-25
A32: 2018-03-26 | B32: Ильичев Ю.Ф. | C32: 23190 | D32: 23270 | E32: 80 | F32: 0 | G32: 350 | H32: 1306 | I32: 1312 | J32: 6 | K32: 3 | L32: 33 | M32: 521 | N32: 70.488 | O32: 109 | P32: 38.512 | R32: 2018-03-26 | U32: 280 | Y32: -67 | Z32: 2018-03-26
A33: 2018-03-27 | B33: Ильичев Ю.Ф. | C33: 23270 | D33: 23280 | E33: 10 | F33: 230 | G33: 521 | H33: 1312 | I33: 1316 | J33: 4 | K33: 2 | L33: 22 | M33: 710 | N33: 26.686 | O33: 41 | P33: 14.314 | R33: 2018-03-27 | Y33: -25 | Z33: 2018-03-27
A34: 2018-03-28 | B34: Ильичев Ю.Ф. | C34: 23280 | D34: 23370 | E34: 90 | F34: 0 | G34: 710 | H34: 1316 | I34: 1324 | J34: 8 | K34: 4 | L34: 44 | M34: 577 | N34: 86.174 | O34: 133 | P34: 46.826 | R34: 2018-03-28 | Y34: -82 | Z34: 2018-03-28
A35: 2018-03-29 | B35: Ильичев Ю.Ф. | C35: 23370 | D35: 23580 | E35: 210 | F35: 0 | G35: 577 | H35: 1324 | I35: 1330 | J35: 6 | K35: 3 | L35: 33 | M35: 582 | N35: 131.406 | O35: 202 | P35: 70.594 | R35: 2018-03-29 | U35: 207 | Y35: -125 | Z35: 2018-03-29
A36: 2018-03-30 | B36: Ильичев Ю.Ф. | C36: 23580 | D36: 23590 | E36: 10 | F36: 0 | G36: 582 | H36: 1330 | I36: 1334 | J36: 4 | K36: 2 | L36: 22 | M36: 541 | N36: 26.686 | O36: 41 | P36: 14.314 | R36: 2018-03-30 | Y36: -25 | Z36: 2018-03-30
A37: 2018-03-31 | B37: Ильичев Ю.Ф. | C37: 23590 | D37: 23600 | E37: 10 | F37: 200 | G37: 541 | H37: 1334 | I37: 1338 | J37: 4 | K37: 2 | L37: 22 | M37: 700 | N37: 26.686 | O37: 41 | P37: 14.314 | R37: 2018-03-31 | Y37: -25 | Z37: 2018-03-31
A38: Итог | E38: 410 | F38: 710 | J38: 32 | K38: 38 | L38: 176 | N38: 368.126 | O38: 567 | P38: 198.874 | R38: 1-я пол. | S38: 0 | T38: 0 | U38: 0 | V38: 0 | W38: 0 | X38: 0 | Y38: 0 | Z38: 1-я пол.
K39: 0 | R39: 2-я пол. | S39: 0 | T39: 0 | U39: 207 | V39: 0 | W39: 0 | X39: 0 | Y39: -349 | Z39: 2-я пол.
K40: 38

Sheet Апрель
P1: Апрель | X1: Экономия | Y1: Базовая норма расхода на 100 км | Z1: Базовая норма расхода на 1 мото/час
A2: Общество с ограниченной ответственностью "Втормет Царицыно" | R2: 1-я пол. | S2: =INDIRECT(TEXT(A7-1,"ММММ")&"!T3")+1 -> 2018-04-01 | T2: 2018-04-14 | U2: =ТС!E5 -> 350 | V2: =SUMIFS(Апрель[Выдано топливо, литр],Апрель[Дата],">="&$S$2,Апрель[Дата],"<="&$T$2)+IF(MONTH(T2)<>MONTH(S2),INDIRECT(TEXT(A7-1,"ММММ")&"!F38")-SUM(INDIRECT(TEXT(A7-1,"ММММ")&"!V1:V2")))+SUMIFS($U$7:$U$37,Апрель[Дата],">="&$S$2,Апрель[Дата],"<="&$T$2)+IF(MONTH(T2)<>MONTH(S2),INDIRECT(TEXT(A7-1,"ММММ")&"!F38")-SUM(INDIRECT(TEXT(A7-1,"ММММ")&"!V1:V2"))) -> 0 | W2: =IF(V2=0,0,(SUMIFS(N7:N37,A7:A37,">="&S2,A7:A37,"<="&T2)+SUMIFS(INDIRECT(TEXT(A7-1,"ММММ")&"!N7:N37"),INDIRECT(TEXT(A7-1,"ММММ")&"!A7:A37"),">="&S2))/(V2-U2+IF(MONTH(T2)=MONTH(S2),G7,INDEX(INDIRECT(TEXT(A7-1,"ММММ")&"!G7:G37"),DAY(S2))))) -> 0 | X2: =SUMIFS(Апрель[Отклонение от нормы (Перерасход(+), экономия(-)), литр],Апрель[Дата],">="&$S$2,Апрель[Дата],"<="&$T$2) -> 0 | Y2: =IF(Y4="Зима",VLOOKUP(Z4,Расчет[[Номер гос.регистрации / Заводской номер]:[Итога норма а/м "ЛЕТО"]],8,FALSE),VLOOKUP(Z4,Расчет[[Номер гос.регистрации / Заводской номер]:[Итога норма а/м "ЛЕТО"]],9,FALSE)) -> 42.6 | Z2: =IF(Y4="Зима",VLOOKUP(Z4,Расчет[[Номер гос.регистрации / Заводской номер]:[Итога норма а/м "ЛЕТО"]],13,FALSE),VLOOKUP(Z4,Расчет[[Номер гос.регистрации / Заводской номер]:[Итога норма а/м "ЛЕТО"]],14,FALSE)) -> 5
A3: Отчет водителя ломовоза с манипулятором | R3: 2-я пол. | S3: =T2+1 -> 2018-04-15 | T3: =INDEX(Апрель[Дата],COUNT(Апрель[Дата]))-T1 -> 2018-04-30 | U3: =ТС!E6 -> 350 | V3: =SUMIFS(Апрель[Выдано топливо, литр],Апрель[Дата],">="&$S$3,Апрель[Дата],"<="&$T$3)+IF(MONTH(T3)<>MONTH(S3),INDIRECT(TEXT(A7-1,"ММММ")&"!F38")-SUM(INDIRECT(TEXT(A7-1,"ММММ")&"!V1:V2")))+SUMIFS($U$7:$U$37,Апрель[Дата],">="&$S$3,Апрель[Дата],"<="&$T$3)+IF(MONTH(T3)<>MONTH(S3),INDIRECT(TEXT(A7-1,"ММММ")&"!F38")-SUM(INDIRECT(TEXT(A7-1,"ММММ")&"!V1:V2"))) -> 1240 | W3: =IF(V3=0,0,(SUMIFS(N7:N37,A7:A37,">="&S3,A7:A37,"<="&T3)+SUMIFS(INDIRECT(TEXT(A7-1,"ММММ")&"!N7:N37"),INDIRECT(TEXT(A7-1,"ММММ")&"!A7:A37"),">="&S3))/(V3-U3+IF(MONTH(T3)=MONTH(S3),G7,INDEX(INDIRECT(TEXT(A7-1,"ММММ")&"!G7:G37"),DAY(S3))))) -> 0.9999516129 | X3: =SUMIFS(Апрель[Отклонение от нормы (Перерасход(+), экономия(-)), литр],Апрель[Дата],">="&$S$3,Апрель[Дата],"<="&$T$3) -> 1240
H4: за | I4: 2018 | O4: =Январь!O4 -> с 504 уо 777 | S4: =IF(INDEX(Апрель[Дата],COUNT(Апрель[Дата]))=T3,"",T3+1) ->  | W4: =IFERROR(IF(S4="","",INDIRECT(TEXT(A7+40,"ММММ")&"!W2")),) ->  | Y4: Лето | Z4: Норма 1
A6: Дата | B6: ФИО водителя | C6: Показание одометра машины на начало дня, км | D6: Показание одометра машины на конец дня, км | E6: Пройдено за день, км | F6: Выдано топливо, литр | G6: Остаток топлива в баке на начало дня, литр | H6: Показание счетчика моточасов спецоборудования на начало дня, м/ч | I6: Показание счетчика моточасов спецоборудования на конец дня, м/ч | J6: Работа спецоборудования за день, м/ч | K6: Количество ходок | L6: Расход топлива на работу спецоборудования, литр | M6: Остаток топлива в баке на конец дня, литр | N6: Расход топлива по норме, литр | O6: Фактический расход топлива, литр | P6: Отклонение от нормы (Перерасход(+), экономия(-)), литр | R6: Дата | S6: Обнуление одометра, км | T6: Пройдено за день, км | U6: Выдано топливо, литр | V6: Обнуление счетчика моточасов спецоборудования, м/ч | W6: Работа спецоборудования за день, м/ч | X6: Расход топлива по норме, литр | Y6: Фактический расход топлива, литр | Z6: Дата
A7: =IFERROR(DATEVALUE((COUNT($A$6:A6)+1)&$P$1&$I$4),"") -> 2018-04-01 | C7: =INDEX(Март!D7:D37,COUNT(Март!D7:D37)) -> 23600 | D7: 23600 | E7: =IFERROR(Апрель[[#This Row],[Показание одометра машины на конец дня, км]]-Апрель[[#This Row],[Показание одометра машины на начало дня, км]]+T7,"") -> 0 | F7: =IF(Апрель[[#This Row],[Дата]]="","",SUMPRODUCT([1]Апрель!$E$4:$E$153*([1]Апрель!$G$4:$G$153=$O$4)*([1]Апрель!$D$4:$D$153=Апрель[[#This Row],[Дата]]))) -> 0 | G7: =U2 -> 350 | H7: =INDEX(Март!I7:I37,COUNT(Март!I7:I37)) -> 1338 | I7: 1338 | J7: =IFERROR(IF(W7="",Апрель[[#This Row],[Показание счетчика моточасов спецоборудования на конец дня, м/ч]],Апрель[[#This Row],[Показание счетчика моточасов спецоборудования на конец дня, м/ч]]+1)-Апрель[[#This Row],[Показание счетчика моточасов спецоборудования на начало дня, м/ч]],"") -> 0 | L7: =IF(Апрель[[#This Row],[Работа спецоборудования за день, м/ч]]="","",Апрель[[#This Row],[Работа спецоборудования за день, м/ч]]*$Z$2) -> 0 | M7: =IFERROR(IF(VLOOKUP([Дата],S$2:U$3,3),IFERROR(IF(U7="",Апрель[[#This Row],[Выдано топливо, литр]],Апрель[[#This Row],[Выдано топливо, литр]]+U7)+Апрель[[#This Row],[Остаток топлива в баке на начало дня, литр]]-Апрель[[#This Row],[Фактический расход топлива, литр]],""),""),"") -> 350 | N7: =IFERROR(ROUND((Апрель[[#This Row],[Пройдено за день, км]]*0.01*$Y$2+Апрель[[#This Row],[Расход топлива на работу спецоборудования, литр]]),3)+X7,"") -> 0 | O7: =IFERROR(IF(Апрель[[#Totals],[Выдано топливо, литр]]=0,0,(ROUND(Апрель[[#This Row],[Расход топлива по норме, литр]]/IF(DAY([Дата])<=18,$W$2,$W$3),0)))+Y7,) -> 0 | P7: =IFERROR(IF(Апрель[[#Totals],[Выдано топливо, литр]]=0,0,(ROUND(Апрель[[#This Row],[Расход топлива по норме, литр]]/VLOOKUP([Дата],S$2:W$3,5),0)))+Y7,) -> 0 | R7: =Апрель[[#This Row],[Дата]] -> 2018-04-01 | Z7: =Апрель[[#This Row],[Дата]] -> 2018-04-01
A8: =IFERROR(DATEVALUE((COUNT($A$6:A7)+1)&$P$1&$I$4),"") -> 2018-04-02 | C8: =IFERROR(IF(INDIRECT(TEXT(A7-1,"ММММ")&"!A7:A37")="","",IF(S7="",D7,S7)),"") -> 23600 | D8: 23600 | E8: =IFERROR(Апрель[[#This Row],[Показание одометра машины на конец дня, км]]-Апрель[[#This Row],[Показание одометра машины на начало дня, км]]+T8,"") -> 0 | F8: =IF(Апрель[[#This Row],[Дата]]="","",SUMPRODUCT([1]Апрель!$E$4:$E$153*([1]Апрель!$G$4:$G$153=$O$4)*([1]Апрель!$D$4:$D$153=Апрель[[#This Row],[Дата]]))) -> 0 | G8: =IF(Апрель[[#This Row],[Дата]]="","",M7) -> 350 | H8: =IFERROR(IF(INDIRECT(TEXT(A7-1,"ММММ")&"!A7:A37")="","",IF(V7="",I7,V7)),"") -> 1338 | I8: 1338 | J8: =IFERROR(IF(W8="",Апрель[[#This Row],[Показание счетчика моточасов спецоборудования на конец дня, м/ч]],Апрель[[#This Row],[Показание счетчика моточасов спецоборудования на конец дня, м/ч]]+1)-Апрель[[#This Row],[Показание счетчика моточасов спецоборудования на начало дня, м/ч]],"") -> 0 | L8: =IF(Апрель[[#This Row],[Работа спецоборудования за день, м/ч]]="","",Апрель[[#This Row],[Работа спецоборудования за день, м/ч]]*$Z$2) -> 0 | M8: =IFERROR(IF(VLOOKUP([Дата],S$2:U$3,3),IFERROR(IF(U8="",Апрель[[#This Row],[Выдано топливо, литр]],Апрель[[#This Row],[Выдано топливо, литр]]+U8)+Апрель[[#This Row],[Остаток топлива в баке на начало дня, литр]]-Апрель[[#This Row],[Фактический расход топлива, литр]],""),""),"") -> 350 | N8: =IFERROR(ROUND((Апрель[[#This Row],[Пройдено за день, км]]*0.01*$Y$2+Апрель[[#This Row],[Расход топлива на работу спецоборудования, литр]]),3)+X8,"") -> 0 | O8: =IFERROR(IF(Апрель[[#Totals],[Выдано топливо, литр]]=0,0,(ROUND(Апрель[[#This Row],[Расход топлива по норме, литр]]/IF(DAY([Дата])<=18,$W$2,$W$3),0)))+Y8,) -> 0 | P8: =IFERROR(IF(Апрель[[#Totals],[Выдано топливо, литр]]=0,0,(ROUND(Апрель[[#This Row],[Расход топлива по норме, литр]]/VLOOKUP([Дата],S$2:W$3,5),0)))+Y8,) -> 0 | R8: =Апрель[[#This Row],[Дата]] -> 2018-04-02 | Z8: =Апрель[[#This Row],[Дата]] -> 2018-04-02
A9: =IFERROR(DATEVALUE((COUNT($A$6:A8)+1)&$P$1&$I$4),"") -> 2018-04-03 | C9: =IFERROR(IF(INDIRECT(TEXT(A8-1,"ММММ")&"!A7:A37")="","",IF(S8="",D8,S8)),"") -> 23600 | D9: 23600 | E9: =IFERROR(Апрель[[#This Row],[Показание одометра машины на конец дня, км]]-Апрель[[#This Row],[Показание одометра машины на начало дня, км]]+T9,"") -> 0 | F9: =IF(Апрель[[#This Row],[Дата]]="","",SUMPRODUCT([1]Апрель!$E$4:$E$153*([1]Апрель!$G$4:$G$153=$O$4)*([1]Апрель!$D$4:$D$153=Апрель[[#This Row],[Дата]]))) -> 0 | G9: =IF(Апрель[[#This Row],[Дата]]="","",M8) -> 350 | H9: =IFERROR(IF(INDIRECT(TEXT(A8-1,"ММММ")&"!A7:A37")="","",IF(V8="",I8,V8)),"") -> 1338 | I9: 1338 | J9: =IFERROR(IF(W9="",Апрель[[#This Row],[Показание счетчика моточасов спецоборудования на конец дня, м/ч]],Апрель[[#This Row],[Показание счетчика моточасов спецоборудования на конец дня, м/ч]]+1)-Апрель[[#This Row],[Показание счетчика моточасов спецоборудования на начало дня, м/ч]],"") -> 0 | L9: =IF(Апрель[[#This Row],[Работа спецоборудования за день, м/ч]]="","",Апрель[[#This Row],[Работа спецоборудования за день, м/ч]]*$Z$2) -> 0 | M9: =IFERROR(IF(VLOOKUP([Дата],S$2:U$3,3),IFERROR(IF(U9="",Апрель[[#This Row],[Выдано топливо, литр]],Апрель[[#This Row],[Выдано топливо, литр]]+U9)+Апрель[[#This Row],[Остаток топлива в баке на начало дня, литр]]-Апрель[[#This Row],[Фактический расход топлива, литр]],""),""),"") -> 350 | N9: =IFERROR(ROUND((Апрель[[#This Row],[Пройдено за день, км]]*0.01*$Y$2+Апрель[[#This Row],[Расход топлива на работу спецоборудования, литр]]),3)+X9,"") -> 0 | O9: =IFERROR(IF(Апрель[[#Totals],[Выдано топливо, литр]]=0,0,(ROUND(Апрель[[#This Row],[Расход топлива по норме, литр]]/IF(DAY([Дата])<=18,$W$2,$W$3),0)))+Y9,) -> 0 | P9: =IFERROR(IF(Апрель[[#Totals],[Выдано топливо, литр]]=0,0,(ROUND(Апрель[[#This Row],[Расход топлива по норме, литр]]/VLOOKUP([Дата],S$2:W$3,5),0)))+Y9,) -> 0 | R9: =Апрель[[#This Row],[Дата]] -> 2018-04-03 | Z9: =Апрель[[#This Row],[Дата]] -> 2018-04-03
A10: =IFERROR(DATEVALUE((COUNT($A$6:A9)+1)&$P$1&$I$4),"") -> 2018-04-04 | C10: 23600 | D10: 23600 | E10: =IFERROR(Апрель[[#This Row],[Показание одометра машины на конец дня, км]]-Апрель[[#This Row],[Показание одометра машины на начало дня, км]]+T10,"") -> 0 | F10: =IF(Апрель[[#This Row],[Дата]]="","",SUMPRODUCT([1]Апрель!$E$4:$E$153*([1]Апрель!$G$4:$G$153=$O$4)*([1]Апрель!$D$4:$D$153=Апрель[[#This Row],[Дата]]))) -> 0 | G10: =IF(Апрель[[#This Row],[Дата]]="","",M9) -> 350 | H10: 1338 | I10: 1338 | J10: =IFERROR(IF(W10="",Апрель[[#This Row],[Показание счетчика моточасов спецоборудования на конец дня, м/ч]],Апрель[[#This Row],[Показание счетчика моточасов спецоборудования на конец дня, м/ч]]+1)-Апрель[[#This Row],[Показание счетчика моточасов спецоборудования на начало дня, м/ч]],"") -> 0 | L10: =IF(Апрель[[#This Row],[Работа спецоборудования за день, м/ч]]="","",Апрель[[#This Row],[Работа спецоборудования за день, м/ч]]*$Z$2) -> 0 | M10: =IFERROR(IF(VLOOKUP([Дата],S$2:U$3,3),IFERROR(IF(U10="",Апрель[[#This Row],[Выдано топливо, литр]],Апрель[[#This Row],[Выдано топливо, литр]]+U10)+Апрель[[#This Row],[Остаток топлива в баке на начало дня, литр]]-Апрель[[#This Row],[Фактический расход топлива, литр]],""),""),"") -> 350 | N10: =IFERROR(ROUND((Апрель[[#This Row],[Пройдено за день, км]]*0.01*$Y$2+Апрель[[#This Row],[Расход топлива на работу спецоборудования, литр]]),3)+X10,"") -> 0 | O10: =IFERROR(IF(Апрель[[#Totals],[Выдано топливо, литр]]=0,0,(ROUND(Апрель[[#This Row],[Расход топлива по норме, литр]]/IF(DAY([Дата])<=18,$W$2,$W$3),0)))+Y10,) -> 0 | P10: =IFERROR(IF(Апрель[[#Totals],[Выдано топливо, литр]]=0,0,(ROUND(Апрель[[#This Row],[Расход топлива по норме, литр]]/VLOOKUP([Дата],S$2:W$3,5),0)))+Y10,) -> 0 | R10: =Апрель[[#This Row],[Дата]] -> 2018-04-04 | Z10: =Апрель[[#This Row],[Дата]] -> 2018-04-04
A11: =IFERROR(DATEVALUE((COUNT($A$6:A10)+1)&$P$1&$I$4),"") -> 2018-04-05 | C11: 23600 | D11: 23600 | E11: =IFERROR(Апрель[[#This Row],[Показание одометра машины на конец дня, км]]-Апрель[[#This Row],[Показание одометра машины на начало дня, км]]+T11,"") -> 0 | F11: =IF(Апрель[[#This Row],[Дата]]="","",SUMPRODUCT([1]Апрель!$E$4:$E$153*([1]Апрель!$G$4:$G$153=$O$4)*([1]Апрель!$D$4:$D$153=Апрель[[#This Row],[Дата]]))) -> 0 | G11: =IF(Апрель[[#This Row],[Дата]]="","",M10) -> 350 | H11: 1338 | I11: 1338 | J11: =IFERROR(IF(W11="",Апрель[[#This Row],[Показание счетчика моточасов спецоборудования на конец дня, м/ч]],Апрель[[#This Row],[Показание счетчика моточасов спецоборудования на конец дня, м/ч]]+1)-Апрель[[#This Row],[Показание счетчика моточасов спецоборудования на начало дня, м/ч]],"") -> 0 | L11: =IF(Апрель[[#This Row],[Работа спецоборудования за день, м/ч]]="","",Апрель[[#This Row],[Работа спецоборудования за день, м/ч]]*$Z$2) -> 0 | M11: =IFERROR(IF(VLOOKUP([Дата],S$2:U$3,3),IFERROR(IF(U11="",Апрель[[#This Row],[Выдано топливо, литр]],Апрель[[#This Row],[Выдано топливо, литр]]+U11)+Апрель[[#This Row],[Остаток топлива в баке на начало дня, литр]]-Апрель[[#This Row],[Фактический расход топлива, литр]],""),""),"") -> 350 | N11: =IFERROR(ROUND((Апрель[[#This Row],[Пройдено за день, км]]*0.01*$Y$2+Апрель[[#This Row],[Расход топлива на работу спецоборудования, литр]]),3)+X11,"") -> 0 | O11: =IFERROR(IF(Апрель[[#Totals],[Выдано топливо, литр]]=0,0,(ROUND(Апрель[[#This Row],[Расход топлива по норме, литр]]/IF(DAY([Дата])<=18,$W$2,$W$3),0)))+Y11,) -> 0 | P11: =IFERROR(IF(Апрель[[#Totals],[Выдано топливо, литр]]=0,0,(ROUND(Апрель[[#This Row],[Расход топлива по норме, литр]]/VLOOKUP([Дата],S$2:W$3,5),0)))+Y11,) -> 0 | R11: =Апрель[[#This Row],[Дата]] -> 2018-04-05 | Z11: =Апрель[[#This Row],[Дата]] -> 2018-04-05
A12: =IFERROR(DATEVALUE((COUNT($A$6:A11)+1)&$P$1&$I$4),"") -> 2018-04-06 | C12: 23600 | D12: 23600 | E12: =IFERROR(Апрель[[#This Row],[Показание одометра машины на конец дня, км]]-Апрель[[#This Row],[Показание одометра машины на начало дня, км]]+T12,"") -> 0 | F12: =IF(Апрель[[#This Row],[Дата]]="","",SUMPRODUCT([1]Апрель!$E$4:$E$153*([1]Апрель!$G$4:$G$153=$O$4)*([1]Апрель!$D$4:$D$153=Апрель[[#This Row],[Дата]]))) -> 0 | G12: =IF(Апрель[[#This Row],[Дата]]="","",M11) -> 350 | H12: 1338 | I12: 1338 | J12: =IFERROR(IF(W12="",Апрель[[#This Row],[Показание счетчика моточасов спецоборудования на конец дня, м/ч]],Апрель[[#This Row],[Показание счетчика моточасов спецоборудования на конец дня, м/ч]]+1)-Апрель[[#This Row],[Показание счетчика моточасов спецоборудования на начало дня, м/ч]],"") -> 0 | L12: =IF(Апрель[[#This Row],[Работа спецоборудования за день, м/ч]]="","",Апрель[[#This Row],[Работа спецоборудования за день, м/ч]]*$Z$2) -> 0 | M12: =IFERROR(IF(VLOOKUP([Дата],S$2:U$3,3),IFERROR(IF(U12="",Апрель[[#This Row],[Выдано топливо, литр]],Апрель[[#This Row],[Выдано топливо, литр]]+U12)+Апрель[[#This Row],[Остаток топлива в баке на начало дня, литр]]-Апрель[[#This Row],[Фактический расход топлива, литр]],""),""),"") -> 350 | N12: =IFERROR(ROUND((Апрель[[#This Row],[Пройдено за день, км]]*0.01*$Y$2+Апрель[[#This Row],[Расход топлива на работу спецоборудования, литр]]),3)+X12,"") -> 0 | O12: =IFERROR(IF(Апрель[[#Totals],[Выдано топливо, литр]]=0,0,(ROUND(Апрель[[#This Row],[Расход топлива по норме, литр]]/IF(DAY([Дата])<=18,$W$2,$W$3),0)))+Y12,) -> 0 | P12: =IFERROR(IF(Апрель[[#Totals],[Выдано топливо, литр]]=0,0,(ROUND(Апрель[[#This Row],[Расход топлива по норме, литр]]/VLOOKUP([Дата],S$2:W$3,5),0)))+Y12,) -> 0 | R12: =Апрель[[#This Row],[Дата]] -> 2018-04-06 | Z12: =Апрель[[#This Row],[Дата]] -> 2018-04-06
A13: =IFERROR(DATEVALUE((COUNT($A$6:A12)+1)&$P$1&$I$4),"") -> 2018-04-07 | C13: 23600 | D13: 23600 | E13: =IFERROR(Апрель[[#This Row],[Показание одометра машины на конец дня, км]]-Апрель[[#This Row],[Показание одометра машины на начало дня, км]]+T13,"") -> 0 | F13: =IF(Апрель[[#This Row],[Дата]]="","",SUMPRODUCT([1]Апрель!$E$4:$E$153*([1]Апрель!$G$4:$G$153=$O$4)*([1]Апрель!$D$4:$D$153=Апрель[[#This Row],[Дата]]))) -> 0 | G13: =IF(Апрель[[#This Row],[Дата]]="","",M12) -> 350 | H13: 1338 | I13: 1338 | J13: =IFERROR(IF(W13="",Апрель[[#This Row],[Показание счетчика моточасов спецоборудования на конец дня, м/ч]],Апрель[[#This Row],[Показание счетчика моточасов спецоборудования на конец дня, м/ч]]+1)-Апрель[[#This Row],[Показание счетчика моточасов спецоборудования на начало дня, м/ч]],"") -> 0 | L13: =IF(Апрель[[#This Row],[Работа спецоборудования за день, м/ч]]="","",Апрель[[#This Row],[Работа спецоборудования за день, м/ч]]*$Z$2) -> 0 | M13: =IFERROR(IF(VLOOKUP([Дата],S$2:U$3,3),IFERROR(IF(U13="",Апрель[[#This Row],[Выдано топливо, литр]],Апрель[[#This Row],[Выдано топливо, литр]]+U13)+Апрель[[#This Row],[Остаток топлива в баке на начало дня, литр]]-Апрель[[#This Row],[Фактический расход топлива, литр]],""),""),"") -> 350 | N13: =IFERROR(ROUND((Апрель[[#This Row],[Пройдено за день, км]]*0.01*$Y$2+Апрель[[#This Row],[Расход топлива на работу спецоборудования, литр]]),3)+X13,"") -> 0 | O13: =IFERROR(IF(Апрель[[#Totals],[Выдано топливо, литр]]=0,0,(ROUND(Апрель[[#This Row],[Расход топлива по норме, литр]]/IF(DAY([Дата])<=18,$W$2,$W$3),0)))+Y13,) -> 0 | P13: =IFERROR(IF(Апрель[[#Totals],[Выдано топливо, литр]]=0,0,(ROUND(Апрель[[#This Row],[Расход топлива по норме, литр]]/VLOOKUP([Дата],S$2:W$3,5),0)))+Y13,) -> 0 | R13: =Апрель[[#This Row],[Дата]] -> 2018-04-07 | Z13: =Апрель[[#This Row],[Дата]] -> 2018-04-07
A14: =IFERROR(DATEVALUE((COUNT($A$6:A13)+1)&$P$1&$I$4),"") -> 2018-04-08 | C14: 23600 | D14: 23600 | E14: =IFERROR(Апрель[[#This Row],[Показание одометра машины на конец дня, км]]-Апрель[[#This Row],[Показание одометра машины на начало дня, км]]+T14,"") -> 0 | F14: =IF(Апрель[[#This Row],[Дата]]="","",SUMPRODUCT([1]Апрель!$E$4:$E$153*([1]Апрель!$G$4:$G$153=$O$4)*([1]Апрель!$D$4:$D$153=Апрель[[#This Row],[Дата]]))) -> 0 | G14: =IF(Апрель[[#This Row],[Дата]]="","",M13) -> 350 | H14: 1338 | I14: 1338 | J14: =IFERROR(IF(W14="",Апрель[[#This Row],[Показание счетчика моточасов спецоборудования на конец дня, м/ч]],Апрель[[#This Row],[Показание счетчика моточасов спецоборудования на конец дня, м/ч]]+1)-Апрель[[#This Row],[Показание счетчика моточасов спецоборудования на начало дня, м/ч]],"") -> 0 | L14: =IF(Апрель[[#This Row],[Работа спецоборудования за день, м/ч]]="","",Апрель[[#This Row],[Работа спецоборудования за день, м/ч]]*$Z$2) -> 0 | M14: =IFERROR(IF(VLOOKUP([Дата],S$2:U$3,3),IFERROR(IF(U14="",Апрель[[#This Row],[Выдано топливо, литр]],Апрель[[#This Row],[Выдано топливо, литр]]+U14)+Апрель[[#This Row],[Остаток топлива в баке на начало дня, литр]]-Апрель[[#This Row],[Фактический расход топлива, литр]],""),""),"") -> 350 | N14: =IFERROR(ROUND((Апрель[[#This Row],[Пройдено за день, км]]*0.01*$Y$2+Апрель[[#This Row],[Расход топлива на работу спецоборудования, литр]]),3)+X14,"") -> 0 | O14: =IFERROR(IF(Апрель[[#Totals],[Выдано топливо, литр]]=0,0,(ROUND(Апрель[[#This Row],[Расход топлива по норме, литр]]/IF(DAY([Дата])<=18,$W$2,$W$3),0)))+Y14,) -> 0 | P14: =IFERROR(IF(Апрель[[#Totals],[Выдано топливо, литр]]=0,0,(ROUND(Апрель[[#This Row],[Расход топлива по норме, литр]]/VLOOKUP([Дата],S$2:W$3,5),0)))+Y14,) -> 0 | R14: =Апрель[[#This Row],[Дата]] -> 2018-04-08 | Z14: =Апрель[[#This Row],[Дата]] -> 2018-04-08
A15: =IFERROR(DATEVALUE((COUNT($A$6:A14)+1)&$P$1&$I$4),"") -> 2018-04-09 | C15: 23600 | D15: 23600 | E15: =IFERROR(Апрель[[#This Row],[Показание одометра машины на конец дня, км]]-Апрель[[#This Row],[Показание одометра машины на начало дня, км]]+T15,"") -> 0 | F15: =IF(Апрель[[#This Row],[Дата]]="","",SUMPRODUCT([1]Апрель!$E$4:$E$153*([1]Апрель!$G$4:$G$153=$O$4)*([1]Апрель!$D$4:$D$153=Апрель[[#This Row],[Дата]]))) -> 0 | G15: =IF(Апрель[[#This Row],[Дата]]="","",M14) -> 350 | H15: 1338 | I15: 1338 | J15: =IFERROR(IF(W15="",Апрель[[#This Row],[Показание счетчика моточасов спецоборудования на конец дня, м/ч]],Апрель[[#This Row],[Показание счетчика моточасов спецоборудования на конец дня, м/ч]]+1)-Апрель[[#This Row],[Показание счетчика моточасов спецоборудования на начало дня, м/ч]],"") -> 0 | L15: =IF(Апрель[[#This Row],[Работа спецоборудования за день, м/ч]]="","",Апрель[[#This Row],[Работа спецоборудования за день, м/ч]]*$Z$2) -> 0 | M15: =IFERROR(IF(VLOOKUP([Дата],S$2:U$3,3),IFERROR(IF(U15="",Апрель[[#This Row],[Выдано топливо, литр]],Апрель[[#This Row],[Выдано топливо, литр]]+U15)+Апрель[[#This Row],[Остаток топлива в баке на начало дня, литр]]-Апрель[[#This Row],[Фактический расход топлива, литр]],""),""),"") -> 350 | N15: =IFERROR(ROUND((Апрель[[#This Row],[Пройдено за день, км]]*0.01*$Y$2+Апрель[[#This Row],[Расход топлива на работу спецоборудования, литр]]),3)+X15,"") -> 0 | O15: =IFERROR(IF(Апрель[[#Totals],[Выдано топливо, литр]]=0,0,(ROUND(Апрель[[#This Row],[Расход топлива по норме, литр]]/IF(DAY([Дата])<=18,$W$2,$W$3),0)))+Y15,) -> 0 | P15: =IFERROR(IF(Апрель[[#Totals],[Выдано топливо, литр]]=0,0,(ROUND(Апрель[[#This Row],[Расход топлива по норме, литр]]/VLOOKUP([Дата],S$2:W$3,5),0)))+Y15,) -> 0 | R15: =Апрель[[#This Row],[Дата]] -> 2018-04-09 | Z15: =Апрель[[#This Row],[Дата]] -> 2018-04-09
A16: =IFERROR(DATEVALUE((COUNT($A$6:A15)+1)&$P$1&$I$4),"") -> 2018-04-10 | C16: 23600 | D16: 23600 | E16: =IFERROR(Апрель[[#This Row],[Показание одометра машины на конец дня, км]]-Апрель[[#This Row],[Показание одометра машины на начало дня, км]]+T16,"") -> 0 | F16: =IF(Апрель[[#This Row],[Дата]]="","",SUMPRODUCT([1]Апрель!$E$4:$E$153*([1]Апрель!$G$4:$G$153=$O$4)*([1]Апрель!$D$4:$D$153=Апрель[[#This Row],[Дата]]))) -> 0 | G16: =IF(Апрель[[#This Row],[Дата]]="","",M15) -> 350 | H16: 1338 | I16: 1338 | J16: =IFERROR(IF(W16="",Апрель[[#This Row],[Показание счетчика моточасов спецоборудования на конец дня, м/ч]],Апрель[[#This Row],[Показание счетчика моточасов спецоборудования на конец дня, м/ч]]+1)-Апрель[[#This Row],[Показание счетчика моточасов спецоборудования на начало дня, м/ч]],"") -> 0 | L16: =IF(Апрель[[#This Row],[Работа спецоборудования за день, м/ч]]="","",Апрель[[#This Row],[Работа спецоборудования за день, м/ч]]*$Z$2) -> 0 | M16: =IFERROR(IF(VLOOKUP([Дата],S$2:U$3,3),IFERROR(IF(U16="",Апрель[[#This Row],[Выдано топливо, литр]],Апрель[[#This Row],[Выдано топливо, литр]]+U16)+Апрель[[#This Row],[Остаток топлива в баке на начало дня, литр]]-Апрель[[#This Row],[Фактический расход топлива, литр]],""),""),"") -> 350 | N16: =IFERROR(ROUND((Апрель[[#This Row],[Пройдено за день, км]]*0.01*$Y$2+Апрель[[#This Row],[Расход топлива на работу спецоборудования, литр]]),3)+X16,"") -> 0 | O16: =IFERROR(IF(Апрель[[#Totals],[Выдано топливо, литр]]=0,0,(ROUND(Апрель[[#This Row],[Расход топлива по норме, литр]]/IF(DAY([Дата])<=18,$W$2,$W$3),0)))+Y16,) -> 0 | P16: =IFERROR(IF(Апрель[[#Totals],[Выдано топливо, литр]]=0,0,(ROUND(Апрель[[#This Row],[Расход топлива по норме, литр]]/VLOOKUP([Дата],S$2:W$3,5),0)))+Y16,) -> 0 | R16: =Апрель[[#This Row],[Дата]] -> 2018-04-10 | Z16: =Апрель[[#This Row],[Дата]] -> 2018-04-10
A17: =IFERROR(DATEVALUE((COUNT($A$6:A16)+1)&$P$1&$I$4),"") -> 2018-04-11 | C17: 23600 | D17: 23600 | E17: =IFERROR(Апрель[[#This Row],[Показание одометра машины на конец дня, км]]-Апрель[[#This Row],[Показание одометра машины на начало дня, км]]+T17,"") -> 0 | F17: =IF(Апрель[[#This Row],[Дата]]="","",SUMPRODUCT([1]Апрель!$E$4:$E$153*([1]Апрель!$G$4:$G$153=$O$4)*([1]Апрель!$D$4:$D$153=Апрель[[#This Row],[Дата]]))) -> 0 | G17: =IF(Апрель[[#This Row],[Дата]]="","",M16) -> 350 | H17: 1338 | I17: 1338 | J17: =IFERROR(IF(W17="",Апрель[[#This Row],[Показание счетчика моточасов спецоборудования на конец дня, м/ч]],Апрель[[#This Row],[Показание счетчика моточасов спецоборудования на конец дня, м/ч]]+1)-Апрель[[#This Row],[Показание счетчика моточасов спецоборудования на начало дня, м/ч]],"") -> 0 | L17: =IF(Апрель[[#This Row],[Работа спецоборудования за день, м/ч]]="","",Апрель[[#This Row],[Работа спецоборудования за день, м/ч]]*$Z$2) -> 0 | M17: =IFERROR(IF(VLOOKUP([Дата],S$2:U$3,3),IFERROR(IF(U17="",Апрель[[#This Row],[Выдано топливо, литр]],Апрель[[#This Row],[Выдано топливо, литр]]+U17)+Апрель[[#This Row],[Остаток топлива в баке на начало дня, литр]]-Апрель[[#This Row],[Фактический расход топлива, литр]],""),""),"") -> 350 | N17: =IFERROR(ROUND((Апрель[[#This Row],[Пройдено за день, км]]*0.01*$Y$2+Апрель[[#This Row],[Расход топлива на работу спецоборудования, литр]]),3)+X17,"") -> 0 | O17: =IFERROR(IF(Апрель[[#Totals],[Выдано топливо, литр]]=0,0,(ROUND(Апрель[[#This Row],[Расход топлива по норме, литр]]/IF(DAY([Дата])<=18,$W$2,$W$3),0)))+Y17,) -> 0 | P17: =IFERROR(IF(Апрель[[#Totals],[Выдано топливо, литр]]=0,0,(ROUND(Апрель[[#This Row],[Расход топлива по норме, литр]]/VLOOKUP([Дата],S$2:W$3,5),0)))+Y17,) -> 0 | R17: =Апрель[[#This Row],[Дата]] -> 2018-04-11 | Z17: =Апрель[[#This Row],[Дата]] -> 2018-04-11
A18: =IFERROR(DATEVALUE((COUNT($A$6:A17)+1)&$P$1&$I$4),"") -> 2018-04-12 | C18: 23600 | D18: 23600 | E18: =IFERROR(Апрель[[#This Row],[Показание одометра машины на конец дня, км]]-Апрель[[#This Row],[Показание одометра машины на начало дня, км]]+T18,"") -> 0 | F18: =IF(Апрель[[#This Row],[Дата]]="","",SUMPRODUCT([1]Апрель!$E$4:$E$153*([1]Апрель!$G$4:$G$153=$O$4)*([1]Апрель!$D$4:$D$153=Апрель[[#This Row],[Дата]]))) -> 0 | G18: =IF(Апрель[[#This Row],[Дата]]="","",M17) -> 350 | H18: 1338 | I18: 1338 | J18: =IFERROR(IF(W18="",Апрель[[#This Row],[Показание счетчика моточасов спецоборудования на конец дня, м/ч]],Апрель[[#This Row],[Показание счетчика моточасов спецоборудования на конец дня, м/ч]]+1)-Апрель[[#This Row],[Показание счетчика моточасов спецоборудования на начало дня, м/ч]],"") -> 0 | L18: =IF(Апрель[[#This Row],[Работа спецоборудования за день, м/ч]]="","",Апрель[[#This Row],[Работа спецоборудования за день, м/ч]]*$Z$2) -> 0 | M18: =IFERROR(IF(VLOOKUP([Дата],S$2:U$3,3),IFERROR(IF(U18="",Апрель[[#This Row],[Выдано топливо, литр]],Апрель[[#This Row],[Выдано топливо, литр]]+U18)+Апрель[[#This Row],[Остаток топлива в баке на начало дня, литр]]-Апрель[[#This Row],[Фактический расход топлива, литр]],""),""),"") -> 350 | N18: =IFERROR(ROUND((Апрель[[#This Row],[Пройдено за день, км]]*0.01*$Y$2+Апрель[[#This Row],[Расход топлива на работу спецоборудования, литр]]),3)+X18,"") -> 0 | O18: =IFERROR(IF(Апрель[[#Totals],[Выдано топливо, литр]]=0,0,(ROUND(Апрель[[#This Row],[Расход топлива по норме, литр]]/IF(DAY([Дата])<=18,$W$2,$W$3),0)))+Y18,) -> 0 | P18: =IFERROR(IF(Апрель[[#Totals],[Выдано топливо, литр]]=0,0,(ROUND(Апрель[[#This Row],[Расход топлива по норме, литр]]/VLOOKUP([Дата],S$2:W$3,5),0)))+Y18,) -> 0 | R18: =Апрель[[#This Row],[Дата]] -> 2018-04-12 | Z18: =Апрель[[#This Row],[Дата]] -> 2018-04-12
A19: =IFERROR(DATEVALUE((COUNT($A$6:A18)+1)&$P$1&$I$4),"") -> 2018-04-13 | C19: 23600 | D19: 23600 | E19: =IFERROR(Апрель[[#This Row],[Показание одометра машины на конец дня, км]]-Апрель[[#This Row],[Показание одометра машины на начало дня, км]]+T19,"") -> 0 | F19: =IF(Апрель[[#This Row],[Дата]]="","",SUMPRODUCT([1]Апрель!$E$4:$E$153*([1]Апрель!$G$4:$G$153=$O$4)*([1]Апрель!$D$4:$D$153=Апрель[[#This Row],[Дата]]))) -> 0 | G19: =IF(Апрель[[#This Row],[Дата]]="","",M18) -> 350 | H19: 1338 | I19: 1338 | J19: =IFERROR(IF(W19="",Апрель[[#This Row],[Показание счетчика моточасов спецоборудования на конец дня, м/ч]],Апрель[[#This Row],[Показание счетчика моточасов спецоборудования на конец дня, м/ч]]+1)-Апрель[[#This Row],[Показание счетчика моточасов спецоборудования на начало дня, м/ч]],"") -> 0 | L19: =IF(Апрель[[#This Row],[Работа спецоборудования за день, м/ч]]="","",Апрель[[#This Row],[Работа спецоборудования за день, м/ч]]*$Z$2) -> 0 | M19: =IFERROR(IF(VLOOKUP([Дата],S$2:U$3,3),IFERROR(IF(U19="",Апрель[[#This Row],[Выдано топливо, литр]],Апрель[[#This Row],[Выдано топливо, литр]]+U19)+Апрель[[#This Row],[Остаток топлива в баке на начало дня, литр]]-Апрель[[#This Row],[Фактический расход топлива, литр]],""),""),"") -> 350 | N19: =IFERROR(ROUND((Апрель[[#This Row],[Пройдено за день, км]]*0.01*$Y$2+Апрель[[#This Row],[Расход топлива на работу спецоборудования, литр]]),3)+X19,"") -> 0 | O19: =IFERROR(IF(Апрель[[#Totals],[Выдано топливо, литр]]=0,0,(ROUND(Апрель[[#This Row],[Расход топлива по норме, литр]]/IF(DAY([Дата])<=18,$W$2,$W$3),0)))+Y19,) -> 0 | P19: =IFERROR(IF(Апрель[[#Totals],[Выдано топливо, литр]]=0,0,(ROUND(Апрель[[#This Row],[Расход топлива по норме, литр]]/VLOOKUP([Дата],S$2:W$3,5),0)))+Y19,) -> 0 | R19: =Апрель[[#This Row],[Дата]] -> 2018-04-13 | Z19: =Апрель[[#This Row],[Дата]] -> 2018-04-13
A20: =IFERROR(DATEVALUE((COUNT($A$6:A19)+1)&$P$1&$I$4),"") -> 2018-04-14 | C20: 23600 | D20: 23600 | E20: =IFERROR(Апрель[[#This Row],[Показание одометра машины на конец дня, км]]-Апрель[[#This Row],[Показание одометра машины на начало дня, км]]+T20,"") -> 0 | F20: =IF(Апрель[[#This Row],[Дата]]="","",SUMPRODUCT([1]Апрель!$E$4:$E$153*([1]Апрель!$G$4:$G$153=$O$4)*([1]Апрель!$D$4:$D$153=Апрель[[#This Row],[Дата]]))) -> 0 | G20: =IF(Апрель[[#This Row],[Дата]]="","",M19) -> 350 | H20: 1338 | I20: 1338 | J20: =IFERROR(IF(W20="",Апрель[[#This Row],[Показание счетчика моточасов спецоборудования на конец дня, м/ч]],Апрель[[#This Row],[Показание счетчика моточасов спецоборудования на конец дня, м/ч]]+1)-Апрель[[#This Row],[Показание счетчика моточасов спецоборудования на начало дня, м/ч]],"") -> 0 | L20: =IF(Апрель[[#This Row],[Работа спецоборудования за день, м/ч]]="","",Апрель[[#This Row],[Работа спецоборудования за день, м/ч]]*$Z$2) -> 0 | M20: =IFERROR(IF(VLOOKUP([Дата],S$2:U$3,3),IFERROR(IF(U20="",Апрель[[#This Row],[Выдано топливо, литр]],Апрель[[#This Row],[Выдано топливо, литр]]+U20)+Апрель[[#This Row],[Остаток топлива в баке на начало дня, литр]]-Апрель[[#This Row],[Фактический расход топлива, литр]],""),""),"") -> 350 | N20: =IFERROR(ROUND((Апрель[[#This Row],[Пройдено за день, км]]*0.01*$Y$2+Апрель[[#This Row],[Расход топлива на работу спецоборудования, литр]]),3)+X20,"") -> 0 | O20: =IFERROR(IF(Апрель[[#Totals],[Выдано топливо, литр]]=0,0,(ROUND(Апрель[[#This Row],[Расход топлива по норме, литр]]/IF(DAY([Дата])<=18,$W$2,$W$3),0)))+Y20,) -> 0 | P20: =IFERROR(IF(Апрель[[#Totals],[Выдано топливо, литр]]=0,0,(ROUND(Апрель[[#This Row],[Расход топлива по норме, литр]]/VLOOKUP([Дата],S$2:W$3,5),0)))+Y20,) -> 0 | R20: =Апрель[[#This Row],[Дата]] -> 2018-04-14 | Z20: =Апрель[[#This Row],[Дата]] -> 2018-04-14
A21: =IFERROR(DATEVALUE((COUNT($A$6:A20)+1)&$P$1&$I$4),"") -> 2018-04-15 | B21: Ильичев Ю.Ф. | C21: 23600 | D21: 23700 | E21: =IFERROR(Апрель[[#This Row],[Показание одометра машины на конец дня, км]]-Апрель[[#This Row],[Показание одометра машины на начало дня, км]]+T21,"") -> 100 | F21: =IF(Апрель[[#This Row],[Дата]]="","",SUMPRODUCT([1]Апрель!$E$4:$E$153*([1]Апрель!$G$4:$G$153=$O$4)*([1]Апрель!$D$4:$D$153=Апрель[[#This Row],[Дата]]))) -> 0 | G21: =IF(Апрель[[#This Row],[Дата]]="","",M20) -> 350 | H21: 1338 | I21: 1348 | J21: =IFERROR(IF(W21="",Апрель[[#This Row],[Показание счетчика моточасов спецоборудования на конец дня, м/ч]],Апрель[[#This Row],[Показание счетчика моточасов спецоборудования на конец дня, м/ч]]+1)-Апрель[[#This Row],[Показание счетчика моточасов спецоборудования на начало дня, м/ч]],"") -> 10 | K21: 5 | L21: =IF(Апрель[[#This Row],[Работа спецоборудования за день, м/ч]]="","",Апрель[[#This Row],[Работа спецоборудования за день, м/ч]]*$Z$2) -> 50 | M21: =IFERROR(IF(VLOOKUP([Дата],S$2:U$3,3),IFERROR(IF(U21="",Апрель[[#This Row],[Выдано топливо, литр]],Апрель[[#This Row],[Выдано топливо, литр]]+U21)+Апрель[[#This Row],[Остаток топлива в баке на начало дня, литр]]-Апрель[[#This Row],[Фактический расход топлива, литр]],""),""),"") -> 350 | N21: =IFERROR(ROUND((Апрель[[#This Row],[Пройдено за день, км]]*0.01*$Y$2+Апрель[[#This Row],[Расход топлива на работу спецоборудования, литр]]),3)+X21,"") -> 92.6 | O21: =IFERROR(IF(Апрель[[#Totals],[Выдано топливо, литр]]=0,0,(ROUND(Апрель[[#This Row],[Расход топлива по норме, литр]]/IF(DAY([Дата])<=18,$W$2,$W$3),0)))+Y21,) -> 0 | P21: =IFERROR(IF(Апрель[[#Totals],[Выдано топливо, литр]]=0,0,(ROUND(Апрель[[#This Row],[Расход топлива по норме, литр]]/VLOOKUP([Дата],S$2:W$3,5),0)))+Y21,) -> 93 | R21: =Апрель[[#This Row],[Дата]] -> 2018-04-15 | Z21: =Апрель[[#This Row],[Дата]] -> 2018-04-15
A22: =IFERROR(DATEVALUE((COUNT($A$6:A21)+1)&$P$1&$I$4),"") -> 2018-04-16 | B22: Ильичев Ю.Ф. | C22: 23700 | D22: 23810 | E22: =IFERROR(Апрель[[#This Row],[Показание одометра машины на конец дня, км]]-Апрель[[#This Row],[Показание одометра машины на начало дня, км]]+T22,"") -> 110 | F22: =IF(Апрель[[#This Row],[Дата]]="","",SUMPRODUCT([1]Апрель!$E$4:$E$153*([1]Апрель!$G$4:$G$153=$O$4)*([1]Апрель!$D$4:$D$153=Апрель[[#This Row],[Дата]]))) -> 0 | G22: =IF(Апрель[[#This Row],[Дата]]="","",M21) -> 350 | H22: 1348 | I22: 1358 | J22: =IFERROR(IF(W22="",Апрель[[#This Row],[Показание счетчика моточасов спецоборудования на конец дня, м/ч]],Апрель[[#This Row],[Показание счетчика моточасов спецоборудования на конец дня, м/ч]]+1)-Апрель[[#This Row],[Показание счетчика моточасов спецоборудования на начало дня, м/ч]],"") -> 10 | K22: 5 | L22: =IF(Апрель[[#This Row],[Работа спецоборудования за день, м/ч]]="","",Апрель[[#This Row],[Работа спецоборудования за день, м/ч]]*$Z$2) -> 50 | M22: =IFERROR(IF(VLOOKUP([Дата],S$2:U$3,3),IFERROR(IF(U22="",Апрель[[#This Row],[Выдано топливо, литр]],Апрель[[#This Row],[Выдано топливо, литр]]+U22)+Апрель[[#This Row],[Остаток топлива в баке на начало дня, литр]]-Апрель[[#This Row],[Фактический расход топлива, литр]],""),""),"") -> 350 | N22: =IFERROR(ROUND((Апрель[[#This Row],[Пройдено за день, км]]*0.01*$Y$2+Апрель[[#This Row],[Расход топлива на работу спецоборудования, литр]]),3)+X22,"") -> 96.86 | O22: =IFERROR(IF(Апрель[[#Totals],[Выдано топливо, литр]]=0,0,(ROUND(Апрель[[#This Row],[Расход топлива по норме, литр]]/IF(DAY([Дата])<=18,$W$2,$W$3),0)))+Y22,) -> 0 | P22: =IFERROR(IF(Апрель[[#Totals],[Выдано топливо, литр]]=0,0,(ROUND(Апрель[[#This Row],[Расход топлива по норме, литр]]/VLOOKUP([Дата],S$2:W$3,5),0)))+Y22,) -> 97 | R22: =Апрель[[#This Row],[Дата]] -> 2018-04-16 | Z22: =Апрель[[#This Row],[Дата]] -> 2018-04-16
A23: =IFERROR(DATEVALUE((COUNT($A$6:A22)+1)&$P$1&$I$4),"") -> 2018-04-17 | B23: Ильичев Ю.Ф. | C23: 23810 | D23: 23970 | E23: =IFERROR(Апрель[[#This Row],[Показание одометра машины на конец дня, км]]-Апрель[[#This Row],[Показание одометра машины на начало дня, км]]+T23,"") -> 160 | F23: =IF(Апрель[[#This Row],[Дата]]="","",SUMPRODUCT([1]Апрель!$E$4:$E$153*([1]Апрель!$G$4:$G$153=$O$4)*([1]Апрель!$D$4:$D$153=Апрель[[#This Row],[Дата]]))) -> 0 | G23: =IF(Апрель[[#This Row],[Дата]]="","",M22) -> 350 | H23: 1358 | I23: 1368 | J23: =IFERROR(IF(W23="",Апрель[[#This Row],[Показание счетчика моточасов спецоборудования на конец дня, м/ч]],Апрель[[#This Row],[Показание счетчика моточасов спецоборудования на конец дня, м/ч]]+1)-Апрель[[#This Row],[Показание счетчика моточасов спецоборудования на начало дня, м/ч]],"") -> 10 | K23: 5 | L23: =IF(Апрель[[#This Row],[Работа спецоборудования за день, м/ч]]="","",Апрель[[#This Row],[Работа спецоборудования за день, м/ч]]*$Z$2) -> 50 | M23: =IFERROR(IF(VLOOKUP([Дата],S$2:U$3,3),IFERROR(IF(U23="",Апрель[[#This Row],[Выдано топливо, литр]],Апрель[[#This Row],[Выдано топливо, литр]]+U23)+Апрель[[#This Row],[Остаток топлива в баке на начало дня, литр]]-Апрель[[#This Row],[Фактический расход топлива, литр]],""),""),"") -> 350 | N23: =IFERROR(ROUND((Апрель[[#This Row],[Пройдено за день, км]]*0.01*$Y$2+Апрель[[#This Row],[Расход топлива на работу спецоборудования, литр]]),3)+X23,"") -> 118.16 | O23: =IFERROR(IF(Апрель[[#Totals],[Выдано топливо, литр]]=0,0,(ROUND(Апрель[[#This Row],[Расход топлива по норме, литр]]/IF(DAY([Дата])<=18,$W$2,$W$3),0)))+Y23,) -> 0 | P23: =IFERROR(IF(Апрель[[#Totals],[Выдано топливо, литр]]=0,0,(ROUND(Апрель[[#This Row],[Расход топлива по норме, литр]]/VLOOKUP([Дата],S$2:W$3,5),0)))+Y23,) -> 118 | R23: =Апрель[[#This Row],[Дата]] -> 2018-04-17 | Z23: =Апрель[[#This Row],[Дата]] -> 2018-04-17
A24: =IFERROR(DATEVALUE((COUNT($A$6:A23)+1)&$P$1&$I$4),"") -> 2018-04-18 | B24: Ильичев Ю.Ф. | C24: 23970 | D24: 24080 | E24: =IFERROR(Апрель[[#This Row],[Показание одометра машины на конец дня, км]]-Апрель[[#This Row],[Показание одометра машины на начало дня, км]]+T24,"") -> 110 | F24: =IF(Апрель[[#This Row],[Дата]]="","",SUMPRODUCT([1]Апрель!$E$4:$E$153*([1]Апрель!$G$4:$G$153=$O$4)*([1]Апрель!$D$4:$D$153=Апрель[[#This Row],[Дата]]))) -> 270 | G24: =IF(Апрель[[#This Row],[Дата]]="","",M23) -> 350 | H24: 1368 | I24: 1378 | J24: =IFERROR(IF(W24="",Апрель[[#This Row],[Показание счетчика моточасов спецоборудования на конец дня, м/ч]],Апрель[[#This Row],[Показание счетчика моточасов спецоборудования на конец дня, м/ч]]+1)-Апрель[[#This Row],[Показание счетчика моточасов спецоборудования на начало дня, м/ч]],"") -> 10 | K24: 5 | L24: =IF(Апрель[[#This Row],[Работа спецоборудования за день, м/ч]]="","",Апрель[[#This Row],[Работа спецоборудования за день, м/ч]]*$Z$2) -> 50 | M24: =IFERROR(IF(VLOOKUP([Дата],S$2:U$3,3),IFERROR(IF(U24="",Апрель[[#This Row],[Выдано топливо, литр]],Апрель[[#This Row],[Выдано топливо, литр]]+U24)+Апрель[[#This Row],[Остаток топлива в баке на начало дня, литр]]-Апрель[[#This Row],[Фактический расход топлива, литр]],""),""),"") -> 620 | N24: =IFERROR(ROUND((Апрель[[#This Row],[Пройдено за день, км]]*0.01*$Y$2+Апрель[[#This Row],[Расход топлива на работу спецоборудования, литр]]),3)+X24,"") -> 96.86 | O24: =IFERROR(IF(Апрель[[#Totals],[Выдано топливо, литр]]=0,0,(ROUND(Апрель[[#This Row],[Расход топлива по норме, литр]]/IF(DAY([Дата])<=18,$W$2,$W$3),0)))+Y24,) -> 0 | P24: =IFERROR(IF(Апрель[[#Totals],[Выдано топливо, литр]]=0,0,(ROUND(Апрель[[#This Row],[Расход топлива по норме, литр]]/VLOOKUP([Дата],S$2:W$3,5),0)))+Y24,) -> 97 | R24: =Апрель[[#This Row],[Дата]] -> 2018-04-18 | Z24: =Апрель[[#This Row],[Дата]] -> 2018-04-18
A25: =IFERROR(DATEVALUE((COUNT($A$6:A24)+1)&$P$1&$I$4),"") -> 2018-04-19 | B25: Ильичев Ю.Ф. | C25: 24080 | D25: 24230 | E25: =IFERROR(Апрель[[#This Row],[Показание одометра машины на конец дня, км]]-Апрель[[#This Row],[Показание одометра машины на начало дня, км]]+T25,"") -> 150 | F25: =IF(Апрель[[#This Row],[Дата]]="","",SUMPRODUCT([1]Апрель!$E$4:$E$153*([1]Апрель!$G$4:$G$153=$O$4)*([1]Апрель!$D$4:$D$153=Апрель[[#This Row],[Дата]]))) -> 0 | G25: =IF(Апрель[[#This Row],[Дата]]="","",M24) -> 620 | H25: 1378 | I25: 1386 | J25: =IFERROR(IF(W25="",Апрель[[#This Row],[Показание счетчика моточасов спецоборудования на конец дня, м/ч]],Апрель[[#This Row],[Показание счетчика моточасов спецоборудования на конец дня, м/ч]]+1)-Апрель[[#This Row],[Показание счетчика моточасов спецоборудования на начало дня, м/ч]],"") -> 8 | K25: 4 | L25: =IF(Апрель[[#This Row],[Работа спецоборудования за день, м/ч]]="","",Апрель[[#This Row],[Работа спецоборудования за день, м/ч]]*$Z$2) -> 40 | M25: =IFERROR(IF(VLOOKUP([Дата],S$2:U$3,3),IFERROR(IF(U25="",Апрель[[#This Row],[Выдано топливо, литр]],Апрель[[#This Row],[Выдано топливо, литр]]+U25)+Апрель[[#This Row],[Остаток топлива в баке на начало дня, литр]]-Апрель[[#This Row],[Фактический расход топлива, литр]],""),""),"") -> 516 | N25: =IFERROR(ROUND((Апрель[[#This Row],[Пройдено за день, км]]*0.01*$Y$2+Апрель[[#This Row],[Расход топлива на работу спецоборудования, литр]]),3)+X25,"") -> 103.9 | O25: =IFERROR(IF(Апрель[[#Totals],[Выдано топливо, литр]]=0,0,(ROUND(Апрель[[#This Row],[Расход топлива по норме, литр]]/IF(DAY([Дата])<=18,$W$2,$W$3),0)))+Y25,) -> 104 | P25: =IFERROR(IF(Апрель[[#Totals],[Выдано топливо, литр]]=0,0,(ROUND(Апрель[[#This Row],[Расход топлива по норме, литр]]/VLOOKUP([Дата],S$2:W$3,5),0)))+Y25,) -> 104 | R25: =Апрель[[#This Row],[Дата]] -> 2018-04-19 | Z25: =Апрель[[#This Row],[Дата]] -> 2018-04-19
A26: =IFERROR(DATEVALUE((COUNT($A$6:A25)+1)&$P$1&$I$4),"") -> 2018-04-20 | B26: Ильичев Ю.Ф. | C26: 24230 | D26: 24350 | E26: =IFERROR(Апрель[[#This Row],[Показание одометра машины на конец дня, км]]-Апрель[[#This Row],[Показание одометра машины на начало дня, км]]+T26,"") -> 120 | F26: =IF(Апрель[[#This Row],[Дата]]="","",SUMPRODUCT([1]Апрель!$E$4:$E$153*([1]Апрель!$G$4:$G$153=$O$4)*([1]Апрель!$D$4:$D$153=Апрель[[#This Row],[Дата]]))) -> 0 | G26: =IF(Апрель[[#This Row],[Дата]]="","",M25) -> 516 | H26: 1386 | I26: 1394 | J26: =IFERROR(IF(W26="",Апрель[[#This Row],[Показание счетчика моточасов спецоборудования на конец дня, м/ч]],Апрель[[#This Row],[Показание счетчика моточасов спецоборудования на конец дня, м/ч]]+1)-Апрель[[#This Row],[Показание счетчика моточасов спецоборудования на начало дня, м/ч]],"") -> 8 | K26: 4 | L26: =IF(Апрель[[#This Row],[Работа спецоборудования за день, м/ч]]="","",Апрель[[#This Row],[Работа спецоборудования за день, м/ч]]*$Z$2) -> 40 | M26: =IFERROR(IF(VLOOKUP([Дата],S$2:U$3,3),IFERROR(IF(U26="",Апрель[[#This Row],[Выдано топливо, литр]],Апрель[[#This Row],[Выдано топливо, литр]]+U26)+Апрель[[#This Row],[Остаток топлива в баке на начало дня, литр]]-Апрель[[#This Row],[Фактический расход топлива, литр]],""),""),"") -> 525 | N26: =IFERROR(ROUND((Апрель[[#This Row],[Пройдено за день, км]]*0.01*$Y$2+Апрель[[#This Row],[Расход топлива на работу спецоборудования, литр]]),3)+X26,"") -> 91.12 | O26: =IFERROR(IF(Апрель[[#Totals],[Выдано топливо, литр]]=0,0,(ROUND(Апрель[[#This Row],[Расход топлива по норме, литр]]/IF(DAY([Дата])<=18,$W$2,$W$3),0)))+Y26,) -> 91 | P26: =IFERROR(IF(Апрель[[#Totals],[Выдано топливо, литр]]=0,0,(ROUND(Апрель[[#This Row],[Расход топлива по норме, литр]]/VLOOKUP([Дата],S$2:W$3,5),0)))+Y26,) -> 91 | R26: =Апрель[[#This Row],[Дата]] -> 2018-04-20 | U26: 100 | Z26: =Апрель[[#This Row],[Дата]] -> 2018-04-20
A27: =IFERROR(DATEVALUE((COUNT($A$6:A26)+1)&$P$1&$I$4),"") -> 2018-04-21 | B27: Ильичев Ю.Ф. | C27: 24350 | D27: 24480 | E27: =IFERROR(Апрель[[#This Row],[Показание одометра машины на конец дня, км]]-Апрель[[#This Row],[Показание одометра машины на начало дня, км]]+T27,"") -> 130 | F27: =IF(Апрель[[#This Row],[Дата]]="","",SUMPRODUCT([1]Апрель!$E$4:$E$153*([1]Апрель!$G$4:$G$153=$O$4)*([1]Апрель!$D$4:$D$153=Апрель[[#This Row],[Дата]]))) -> 0 | G27: =IF(Апрель[[#This Row],[Дата]]="","",M26) -> 525 | H27: 1394 | I27: 1404 | J27: =IFERROR(IF(W27="",Апрель[[#This Row],[Показание счетчика моточасов спецоборудования на конец дня, м/ч]],Апрель[[#This Row],[Показание счетчика моточасов спецоборудования на конец дня, м/ч]]+1)-Апрель[[#This Row],[Показание счетчика моточасов спецоборудования на начало дня, м/ч]],"") -> 10 | K27: 5 | L27: =IF(Апрель[[#This Row],[Работа спецоборудования за день, м/ч]]="","",Апрель[[#This Row],[Работа спецоборудования за день, м/ч]]*$Z$2) -> 50 | M27: =IFERROR(IF(VLOOKUP([Дата],S$2:U$3,3),IFERROR(IF(U27="",Апрель[[#This Row],[Выдано топливо, литр]],Апрель[[#This Row],[Выдано топливо, литр]]+U27)+Апрель[[#This Row],[Остаток топлива в баке на начало дня, литр]]-Апрель[[#This Row],[Фактический расход топлива, литр]],""),""),"") -> 420 | N27: =IFERROR(ROUND((Апрель[[#This Row],[Пройдено за день, км]]*0.01*$Y$2+Апрель[[#This Row],[Расход топлива на работу спецоборудования, литр]]),3)+X27,"") -> 105.38 | O27: =IFERROR(IF(Апрель[[#Totals],[Выдано топливо, литр]]=0,0,(ROUND(Апрель[[#This Row],[Расход топлива по норме, литр]]/IF(DAY([Дата])<=18,$W$2,$W$3),0)))+Y27,) -> 105 | P27: =IFERROR(IF(Апрель[[#Totals],[Выдано топливо, литр]]=0,0,(ROUND(Апрель[[#This Row],[Расход топлива по норме, литр]]/VLOOKUP([Дата],S$2:W$3,5),0)))+Y27,) -> 105 | R27: =Апрель[[#This Row],[Дата]] -> 2018-04-21 | Z27: =Апрель[[#This Row],[Дата]] -> 2018-04-21
A28: =IFERROR(DATEVALUE((COUNT($A$6:A27)+1)&$P$1&$I$4),"") -> 2018-04-22 | B28: Ильичев Ю.Ф. | C28: 24480 | D28: 24610 | E28: =IFERROR(Апрель[[#This Row],[Показание одометра машины на конец дня, км]]-Апрель[[#This Row],[Показание одометра машины на начало дня, км]]+T28,"") -> 130 | F28: =IF(Апрель[[#This Row],[Дата]]="","",SUMPRODUCT([1]Апрель!$E$4:$E$153*([1]Апрель!$G$4:$G$153=$O$4)*([1]Апрель!$D$4:$D$153=Апрель[[#This Row],[Дата]]))) -> 310 | G28: =IF(Апрель[[#This Row],[Дата]]="","",M27) -> 420 | H28: 1404 | I28: 1412 | J28: =IFERROR(IF(W28="",Апрель[[#This Row],[Показание счетчика моточасов спецоборудования на конец дня, м/ч]],Апрель[[#This Row],[Показание счетчика моточасов спецоборудования на конец дня, м/ч]]+1)-Апрель[[#This Row],[Показание счетчика моточасов спецоборудования на начало дня, м/ч]],"") -> 8 | K28: 4 | L28: =IF(Апрель[[#This Row],[Работа спецоборудования за день, м/ч]]="","",Апрель[[#This Row],[Работа спецоборудования за день, м/ч]]*$Z$2) -> 40 | M28: =IFERROR(IF(VLOOKUP([Дата],S$2:U$3,3),IFERROR(IF(U28="",Апрель[[#This Row],[Выдано топливо, литр]],Апрель[[#This Row],[Выдано топливо, литр]]+U28)+Апрель[[#This Row],[Остаток топлива в баке на начало дня, литр]]-Апрель[[#This Row],[Фактический расход топлива, литр]],""),""),"") -> 535 | N28: =IFERROR(ROUND((Апрель[[#This Row],[Пройдено за день, км]]*0.01*$Y$2+Апрель[[#This Row],[Расход топлива на работу спецоборудования, литр]]),3)+X28,"") -> 95.38 | O28: =IFERROR(IF(Апрель[[#Totals],[Выдано топливо, литр]]=0,0,(ROUND(Апрель[[#This Row],[Расход топлива по норме, литр]]/IF(DAY([Дата])<=18,$W$2,$W$3),0)))+Y28,) -> 95 | P28: =IFERROR(IF(Апрель[[#Totals],[Выдано топливо, литр]]=0,0,(ROUND(Апрель[[#This Row],[Расход топлива по норме, литр]]/VLOOKUP([Дата],S$2:W$3,5),0)))+Y28,) -> 95 | R28: =Апрель[[#This Row],[Дата]] -> 2018-04-22 | U28: -100 | Z28: =Апрель[[#This Row],[Дата]] -> 2018-04-22
A29: =IFERROR(DATEVALUE((COUNT($A$6:A28)+1)&$P$1&$I$4),"") -> 2018-04-23 | B29: Ильичев Ю.Ф. | C29: 24610 | D29: 24750 | E29: =IFERROR(Апрель[[#This Row],[Показание одометра машины на конец дня, км]]-Апрель[[#This Row],[Показание одометра машины на начало дня, км]]+T29,"") -> 140 | F29: =IF(Апрель[[#This Row],[Дата]]="","",SUMPRODUCT([1]Апрель!$E$4:$E$153*([1]Апрель!$G$4:$G$153=$O$4)*([1]Апрель!$D$4:$D$153=Апрель[[#This Row],[Дата]]))) -> 0 | G29: =IF(Апрель[[#This Row],[Дата]]="","",M28) -> 535 | H29: 1412 | I29: 1418 | J29: =IFERROR(IF(W29="",Апрель[[#This Row],[Показание счетчика моточасов спецоборудования на конец дня, м/ч]],Апрель[[#This Row],[Показание счетчика моточасов спецоборудования на конец дня, м/ч]]+1)-Апрель[[#This Row],[Показание счетчика моточасов спецоборудования на начало дня, м/ч]],"") -> 6 | K29: 3 | L29: =IF(Апрель[[#This Row],[Работа спецоборудования за день, м/ч]]="","",Апрель[[#This Row],[Работа спецоборудования за день, м/ч]]*$Z$2) -> 30 | M29: =IFERROR(IF(VLOOKUP([Дата],S$2:U$3,3),IFERROR(IF(U29="",Апрель[[#This Row],[Выдано топливо, литр]],Апрель[[#This Row],[Выдано топливо, литр]]+U29)+Апрель[[#This Row],[Остаток топлива в баке на начало дня, литр]]-Апрель[[#This Row],[Фактический расход топлива, литр]],""),""),"") -> 445 | N29: =IFERROR(ROUND((Апрель[[#This Row],[Пройдено за день, км]]*0.01*$Y$2+Апрель[[#This Row],[Расход топлива на работу спецоборудования, литр]]),3)+X29,"") -> 89.64 | O29: =IFERROR(IF(Апрель[[#Totals],[Выдано топливо, литр]]=0,0,(ROUND(Апрель[[#This Row],[Расход топлива по норме, литр]]/IF(DAY([Дата])<=18,$W$2,$W$3),0)))+Y29,) -> 90 | P29: =IFERROR(IF(Апрель[[#Totals],[Выдано топливо, литр]]=0,0,(ROUND(Апрель[[#This Row],[Расход топлива по норме, литр]]/VLOOKUP([Дата],S$2:W$3,5),0)))+Y29,) -> 90 | R29: =Апрель[[#This Row],[Дата]] -> 2018-04-23 | Z29: =Апрель[[#This Row],[Дата]] -> 2018-04-23
A30: =IFERROR(DATEVALUE((COUNT($A$6:A29)+1)&$P$1&$I$4),"") -> 2018-04-24 | B30: Ильичев Ю.Ф. | C30: 24750 | D30: 24820 | E30: =IFERROR(Апрель[[#This Row],[Показание одометра машины на конец дня, км]]-Апрель[[#This Row],[Показание одометра машины на начало дня, км]]+T30,"") -> 70 | F30: =IF(Апрель[[#This Row],[Дата]]="","",SUMPRODUCT([1]Апрель!$E$4:$E$153*([1]Апрель!$G$4:$G$153=$O$4)*([1]Апрель!$D$4:$D$153=Апрель[[#This Row],[Дата]]))) -> 0 | G30: =IF(Апрель[[#This Row],[Дата]]="","",M29) -> 445 | H30: 1418 | I30: 1424 | J30: =IFERROR(IF(W30="",Апрель[[#This Row],[Показание счетчика моточасов спецоборудования на конец дня, м/ч]],Апрель[[#This Row],[Показание счетчика моточасов спецоборудования на конец дня, м/ч]]+1)-Апрель[[#This Row],[Показание счетчика моточасов спецоборудования на начало дня, м/ч]],"") -> 6 | K30: 3 | L30: =IF(Апрель[[#This Row],[Работа спецоборудования за день, м/ч]]="","",Апрель[[#This Row],[Работа спецоборудования за день, м/ч]]*$Z$2) -> 30 | M30: =IFERROR(IF(VLOOKUP([Дата],S$2:U$3,3),IFERROR(IF(U30="",Апрель[[#This Row],[Выдано топливо, литр]],Апрель[[#This Row],[Выдано топливо, литр]]+U30)+Апрель[[#This Row],[Остаток топлива в баке на начало дня, литр]]-Апрель[[#This Row],[Фактический расход топлива, литр]],""),""),"") -> 505 | N30: =IFERROR(ROUND((Апрель[[#This Row],[Пройдено за день, км]]*0.01*$Y$2+Апрель[[#This Row],[Расход топлива на работу спецоборудования, литр]]),3)+X30,"") -> 59.82 | O30: =IFERROR(IF(Апрель[[#Totals],[Выдано топливо, литр]]=0,0,(ROUND(Апрель[[#This Row],[Расход топлива по норме, литр]]/IF(DAY([Дата])<=18,$W$2,$W$3),0)))+Y30,) -> 60 | P30: =IFERROR(IF(Апрель[[#Totals],[Выдано топливо, литр]]=0,0,(ROUND(Апрель[[#This Row],[Расход топлива по норме, литр]]/VLOOKUP([Дата],S$2:W$3,5),0)))+Y30,) -> 60 | R30: =Апрель[[#This Row],[Дата]] -> 2018-04-24 | U30: 120 | Z30: =Апрель[[#This Row],[Дата]] -> 2018-04-24
A31: =IFERROR(DATEVALUE((COUNT($A$6:A30)+1)&$P$1&$I$4),"") -> 2018-04-25 | B31: Ильичев Ю.Ф. | C31: 24820 | D31: 24970 | E31: =IFERROR(Апрель[[#This Row],[Показание одометра машины на конец дня, км]]-Апрель[[#This Row],[Показание одометра машины на начало дня, км]]+T31,"") -> 150 | F31: =IF(Апрель[[#This Row],[Дата]]="","",SUMPRODUCT([1]Апрель!$E$4:$E$153*([1]Апрель!$G$4:$G$153=$O$4)*([1]Апрель!$D$4:$D$153=Апрель[[#This Row],[Дата]]))) -> 0 | G31: =IF(Апрель[[#This Row],[Дата]]="","",M30) -> 505 | H31: 1424 | I31: 1430 | J31: =IFERROR(IF(W31="",Апрель[[#This Row],[Показание счетчика моточасов спецоборудования на конец дня, м/ч]],Апрель[[#This Row],[Показание счетчика моточасов спецоборудования на конец дня, м/ч]]+1)-Апрель[[#This Row],[Показание счетчика моточасов спецоборудования на начало дня, м/ч]],"") -> 6 | K31: 3 | L31: =IF(Апрель[[#This Row],[Работа спецоборудования за день, м/ч]]="","",Апрель[[#This Row],[Работа спецоборудования за день, м/ч]]*$Z$2) -> 30 | M31: =IFERROR(IF(VLOOKUP([Дата],S$2:U$3,3),IFERROR(IF(U31="",Апрель[[#This Row],[Выдано топливо, литр]],Апрель[[#This Row],[Выдано топливо, литр]]+U31)+Апрель[[#This Row],[Остаток топлива в баке на начало дня, литр]]-Апрель[[#This Row],[Фактический расход топлива, литр]],""),""),"") -> 411 | N31: =IFERROR(ROUND((Апрель[[#This Row],[Пройдено за день, км]]*0.01*$Y$2+Апрель[[#This Row],[Расход топлива на работу спецоборудования, литр]]),3)+X31,"") -> 93.9 | O31: =IFERROR(IF(Апрель[[#Totals],[Выдано топливо, литр]]=0,0,(ROUND(Апрель[[#This Row],[Расход топлива по норме, литр]]/IF(DAY([Дата])<=18,$W$2,$W$3),0)))+Y31,) -> 94 | P31: =IFERROR(IF(Апрель[[#Totals],[Выдано топливо, литр]]=0,0,(ROUND(Апрель[[#This Row],[Расход топлива по норме, литр]]/VLOOKUP([Дата],S$2:W$3,5),0)))+Y31,) -> 94 | R31: =Апрель[[#This Row],[Дата]] -> 2018-04-25 | Z31: =Апрель[[#This Row],[Дата]] -> 2018-04-25
A32: =IFERROR(DATEVALUE((COUNT($A$6:A31)+1)&$P$1&$I$4),"") -> 2018-04-26 | B32: Ильичев Ю.Ф. | C32: 24970 | D32: 25040 | E32: =IFERROR(Апрель[[#This Row],[Показание одометра машины на конец дня, км]]-Апрель[[#This Row],[Показание одометра машины на начало дня, км]]+T32,"") -> 70 | F32: =IF(Апрель[[#This Row],[Дата]]="","",SUMPRODUCT([1]Апрель!$E$4:$E$153*([1]Апрель!$G$4:$G$153=$O$4)*([1]Апрель!$D$4:$D$153=Апрель[[#This Row],[Дата]]))) -> 280 | G32: =IF(Апрель[[#This Row],[Дата]]="","",M31) -> 411 | H32: 1430 | I32: 1432 | J32: =IFERROR(IF(W32="",Апрель[[#This Row],[Показание счетчика моточасов спецоборудования на конец дня, м/ч]],Апрель[[#This Row],[Показание счетчика моточасов спецоборудования на конец дня, м/ч]]+1)-Апрель[[#This Row],[Показание счетчика моточасов спецоборудования на начало дня, м/ч]],"") -> 2 | K32: 1 | L32: =IF(Апрель[[#This Row],[Работа спецоборудования за день, м/ч]]="","",Апрель[[#This Row],[Работа спецоборудования за день, м/ч]]*$Z$2) -> 10 | M32: =IFERROR(IF(VLOOKUP([Дата],S$2:U$3,3),IFERROR(IF(U32="",Апрель[[#This Row],[Выдано топливо, литр]],Апрель[[#This Row],[Выдано топливо, литр]]+U32)+Апрель[[#This Row],[Остаток топлива в баке на начало дня, литр]]-Апрель[[#This Row],[Фактический расход топлива, литр]],""),""),"") -> 651 | N32: =IFERROR(ROUND((Апрель[[#This Row],[Пройдено за день, км]]*0.01*$Y$2+Апрель[[#This Row],[Расход топлива на работу спецоборудования, литр]]),3)+X32,"") -> 39.82 | O32: =IFERROR(IF(Апрель[[#Totals],[Выдано топливо, литр]]=0,0,(ROUND(Апрель[[#This Row],[Расход топлива по норме, литр]]/IF(DAY([Дата])<=18,$W$2,$W$3),0)))+Y32,) -> 40 | P32: =IFERROR(IF(Апрель[[#Totals],[Выдано топливо, литр]]=0,0,(ROUND(Апрель[[#This Row],[Расход топлива по норме, литр]]/VLOOKUP([Дата],S$2:W$3,5),0)))+Y32,) -> 40 | R32: =Апрель[[#This Row],[Дата]] -> 2018-04-26 | Z32: =Апрель[[#This Row],[Дата]] -> 2018-04-26
A33: =IFERROR(DATEVALUE((COUNT($A$6:A32)+1)&$P$1&$I$4),"") -> 2018-04-27 | B33: Ильичев Ю.Ф. | C33: 25040 | D33: 25210 | E33: =IFERROR(Апрель[[#This Row],[Показание одометра машины на конец дня, км]]-Апрель[[#This Row],[Показание одометра машины на начало дня, км]]+T33,"") -> 170 | F33: =IF(Апрель[[#This Row],[Дата]]="","",SUMPRODUCT([1]Апрель!$E$4:$E$153*([1]Апрель!$G$4:$G$153=$O$4)*([1]Апрель!$D$4:$D$153=Апрель[[#This Row],[Дата]]))) -> 0 | G33: =IF(Апрель[[#This Row],[Дата]]="","",M32) -> 651 | H33: 1432 | I33: 1438 | J33: =IFERROR(IF(W33="",Апрель[[#This Row],[Показание счетчика моточасов спецоборудования на конец дня, м/ч]],Апрель[[#This Row],[Показание счетчика моточасов спецоборудования на конец дня, м/ч]]+1)-Апрель[[#This Row],[Показание счетчика моточасов спецоборудования на начало дня, м/ч]],"") -> 6 | K33: 3 | L33: =IF(Апрель[[#This Row],[Работа спецоборудования за день, м/ч]]="","",Апрель[[#This Row],[Работа спецоборудования за день, м/ч]]*$Z$2) -> 30 | M33: =IFERROR(IF(VLOOKUP([Дата],S$2:U$3,3),IFERROR(IF(U33="",Апрель[[#This Row],[Выдано топливо, литр]],Апрель[[#This Row],[Выдано топливо, литр]]+U33)+Апрель[[#This Row],[Остаток топлива в баке на начало дня, литр]]-Апрель[[#This Row],[Фактический расход топлива, литр]],""),""),"") -> 649 | N33: =IFERROR(ROUND((Апрель[[#This Row],[Пройдено за день, км]]*0.01*$Y$2+Апрель[[#This Row],[Расход топлива на работу спецоборудования, литр]]),3)+X33,"") -> 102.42 | O33: =IFERROR(IF(Апрель[[#Totals],[Выдано топливо, литр]]=0,0,(ROUND(Апрель[[#This Row],[Расход топлива по норме, литр]]/IF(DAY([Дата])<=18,$W$2,$W$3),0)))+Y33,) -> 102 | P33: =IFERROR(IF(Апрель[[#Totals],[Выдано топливо, литр]]=0,0,(ROUND(Апрель[[#This Row],[Расход топлива по норме, литр]]/VLOOKUP([Дата],S$2:W$3,5),0)))+Y33,) -> 102 | R33: =Апрель[[#This Row],[Дата]] -> 2018-04-27 | U33: 100 | Z33: =Апрель[[#This Row],[Дата]] -> 2018-04-27
A34: =IFERROR(DATEVALUE((COUNT($A$6:A33)+1)&$P$1&$I$4),"") -> 2018-04-28 | B34: Ильичев Ю.Ф. | C34: 25210 | D34: 25290 | E34: =IFERROR(Апрель[[#This Row],[Показание одометра машины на конец дня, км]]-Апрель[[#This Row],[Показание одометра машины на начало дня, км]]+T34,"") -> 80 | F34: =IF(Апрель[[#This Row],[Дата]]="","",SUMPRODUCT([1]Апрель!$E$4:$E$153*([1]Апрель!$G$4:$G$153=$O$4)*([1]Апрель!$D$4:$D$153=Апрель[[#This Row],[Дата]]))) -> 120 | G34: =IF(Апрель[[#This Row],[Дата]]="","",M33) -> 649 | H34: 1438 | I34: 1442 | J34: =IFERROR(IF(W34="",Апрель[[#This Row],[Показание счетчика моточасов спецоборудования на конец дня, м/ч]],Апрель[[#This Row],[Показание счетчика моточасов спецоборудования на конец дня, м/ч]]+1)-Апрель[[#This Row],[Показание счетчика моточасов спецоборудования на начало дня, м/ч]],"") -> 4 | K34: 2 | L34: =IF(Апрель[[#This Row],[Работа спецоборудования за день, м/ч]]="","",Апрель[[#This Row],[Работа спецоборудования за день, м/ч]]*$Z$2) -> 20 | M34: =IFERROR(IF(VLOOKUP([Дата],S$2:U$3,3),IFERROR(IF(U34="",Апрель[[#This Row],[Выдано топливо, литр]],Апрель[[#This Row],[Выдано топливо, литр]]+U34)+Апрель[[#This Row],[Остаток топлива в баке на начало дня, литр]]-Апрель[[#This Row],[Фактический расход топлива, литр]],""),""),"") -> 755 | N34: =IFERROR(ROUND((Апрель[[#This Row],[Пройдено за день, км]]*0.01*$Y$2+Апрель[[#This Row],[Расход топлива на работу спецоборудования, литр]]),3)+X34,"") -> 54.08 | O34: =IFERROR(IF(Апрель[[#Totals],[Выдано топливо, литр]]=0,0,(ROUND(Апрель[[#This Row],[Расход топлива по норме, литр]]/IF(DAY([Дата])<=18,$W$2,$W$3),0)))+Y34,) -> 54 | P34: =IFERROR(IF(Апрель[[#Totals],[Выдано топливо, литр]]=0,0,(ROUND(Апрель[[#This Row],[Расход топлива по норме, литр]]/VLOOKUP([Дата],S$2:W$3,5),0)))+Y34,) -> 54 | R34: =Апрель[[#This Row],[Дата]] -> 2018-04-28 | U34: 40 | Z34: =Апрель[[#This Row],[Дата]] -> 2018-04-28
A35: =IFERROR(DATEVALUE((COUNT($A$6:A34)+1)&$P$1&$I$4),"") -> 2018-04-29 | B35: Ильичев Ю.Ф. | C35: 25290 | D35: 25290 | E35: =IFERROR(Апрель[[#This Row],[Показание одометра машины на конец дня, км]]-Апрель[[#This Row],[Показание одометра машины на начало дня, км]]+T35,"") -> 0 | F35: =IF(Апрель[[#This Row],[Дата]]="","",SUMPRODUCT([1]Апрель!$E$4:$E$153*([1]Апрель!$G$4:$G$153=$O$4)*([1]Апрель!$D$4:$D$153=Апрель[[#This Row],[Дата]]))) -> 0 | G35: =IF(Апрель[[#This Row],[Дата]]="","",M34) -> 755 | H35: 1442 | I35: 1442 | J35: =IFERROR(IF(W35="",Апрель[[#This Row],[Показание счетчика моточасов спецоборудования на конец дня, м/ч]],Апрель[[#This Row],[Показание счетчика моточасов спецоборудования на конец дня, м/ч]]+1)-Апрель[[#This Row],[Показание счетчика моточасов спецоборудования на начало дня, м/ч]],"") -> 0 | L35: =IF(Апрель[[#This Row],[Работа спецоборудования за день, м/ч]]="","",Апрель[[#This Row],[Работа спецоборудования за день, м/ч]]*$Z$2) -> 0 | M35: =IFERROR(IF(VLOOKUP([Дата],S$2:U$3,3),IFERROR(IF(U35="",Апрель[[#This Row],[Выдано топливо, литр]],Апрель[[#This Row],[Выдано топливо, литр]]+U35)+Апрель[[#This Row],[Остаток топлива в баке на начало дня, литр]]-Апрель[[#This Row],[Фактический расход топлива, литр]],""),""),"") -> 755 | N35: =IFERROR(ROUND((Апрель[[#This Row],[Пройдено за день, км]]*0.01*$Y$2+Апрель[[#This Row],[Расход топлива на работу спецоборудования, литр]]),3)+X35,"") -> 0 | O35: =IFERROR(IF(Апрель[[#Totals],[Выдано топливо, литр]]=0,0,(ROUND(Апрель[[#This Row],[Расход топлива по норме, литр]]/IF(DAY([Дата])<=18,$W$2,$W$3),0)))+Y35,) -> 0 | P35: =IFERROR(IF(Апрель[[#Totals],[Выдано топливо, литр]]=0,0,(ROUND(Апрель[[#This Row],[Расход топлива по норме, литр]]/VLOOKUP([Дата],S$2:W$3,5),0)))+Y35,) -> 0 | R35: =Апрель[[#This Row],[Дата]] -> 2018-04-29 | Z35: =Апрель[[#This Row],[Дата]] -> 2018-04-29
A36: =IFERROR(DATEVALUE((COUNT($A$6:A35)+1)&$P$1&$I$4),"") -> 2018-04-30 | B36: Ильичев Ю.Ф. | C36: 25290 | D36: 25290 | E36: =IFERROR(Апрель[[#This Row],[Показание одометра машины на конец дня, км]]-Апрель[[#This Row],[Показание одометра машины на начало дня, км]]+T36,"") -> 0 | F36: =IF(Апрель[[#This Row],[Дата]]="","",SUMPRODUCT([1]Апрель!$E$4:$E$153*([1]Апрель!$G$4:$G$153=$O$4)*([1]Апрель!$D$4:$D$153=Апрель[[#This Row],[Дата]]))) -> 0 | G36: =IF(Апрель[[#This Row],[Дата]]="","",M35) -> 755 | H36: 1442 | I36: 1442 | J36: =IFERROR(IF(W36="",Апрель[[#This Row],[Показание счетчика моточасов спецоборудования на конец дня, м/ч]],Апрель[[#This Row],[Показание счетчика моточасов спецоборудования на конец дня, м/ч]]+1)-Апрель[[#This Row],[Показание счетчика моточасов спецоборудования на начало дня, м/ч]],"") -> 0 | L36: =IF(Апрель[[#This Row],[Работа спецоборудования за день, м/ч]]="","",Апрель[[#This Row],[Работа спецоборудования за день, м/ч]]*$Z$2) -> 0 | M36: =IFERROR(IF(VLOOKUP([Дата],S$2:U$3,3),IFERROR(IF(U36="",Апрель[[#This Row],[Выдано топливо, литр]],Апрель[[#This Row],[Выдано топливо, литр]]+U36)+Апрель[[#This Row],[Остаток топлива в баке на начало дня, литр]]-Апрель[[#This Row],[Фактический расход топлива, литр]],""),""),"") -> 755 | N36: =IFERROR(ROUND((Апрель[[#This Row],[Пройдено за день, км]]*0.01*$Y$2+Апрель[[#This Row],[Расход топлива на работу спецоборудования, литр]]),3)+X36,"") -> 0 | O36: =IFERROR(IF(Апрель[[#Totals],[Выдано топливо, литр]]=0,0,(ROUND(Апрель[[#This Row],[Расход топлива по норме, литр]]/IF(DAY([Дата])<=18,$W$2,$W$3),0)))+Y36,) -> 0 | P36: =IFERROR(IF(Апрель[[#Totals],[Выдано топливо, литр]]=0,0,(ROUND(Апрель[[#This Row],[Расход топлива по норме, литр]]/VLOOKUP([Дата],S$2:W$3,5),0)))+Y36,) -> 0 | R36: =Апрель[[#This Row],[Дата]] -> 2018-04-30 | Z36: =Апрель[[#This Row],[Дата]] -> 2018-04-30
A37: =IFERROR(DATEVALUE((COUNT($A$6:A36)+1)&$P$1&$I$4),"") ->  | E37: =IFERROR(Апрель[[#This Row],[Показание одометра машины на конец дня, км]]-Апрель[[#This Row],[Показание одометра машины на начало дня, км]]+T37,"") ->  | F37: =IF(Апрель[[#This Row],[Дата]]="","",SUMPRODUCT([1]Апрель!$E$4:$E$153*([1]Апрель!$G$4:$G$153=$O$4)*([1]Апрель!$D$4:$D$153=Апрель[[#This Row],[Дата]]))) ->  | G37: =IF(Апрель[[#This Row],[Дата]]="","",M36) ->  | J37: =IFERROR(IF(W37="",Апрель[[#This Row],[Показание счетчика моточасов спецоборудования на конец дня, м/ч]],Апрель[[#This Row],[Показание счетчика моточасов спецоборудования на конец дня, м/ч]]+1)-Апрель[[#This Row],[Показание счетчика моточасов спецоборудования на начало дня, м/ч]],"") ->  | L37: =IF(Апрель[[#This Row],[Работа спецоборудования за день, м/ч]]="","",Апрель[[#This Row],[Работа спецоборудования за день, м/ч]]*$Z$2) ->  | M37: =IFERROR(IF(VLOOKUP([Дата],S$2:U$3,3),IFERROR(IF(U37="",Апрель[[#This Row],[Выдано топливо, литр]],Апрель[[#This Row],[Выдано топливо, литр]]+U37)+Апрель[[#This Row],[Остаток топлива в баке на начало дня, литр]]-Апрель[[#This Row],[Фактический расход топлива, литр]],""),""),"") ->  | N37: =IFERROR(ROUND((Апрель[[#This Row],[Пройдено за день, км]]*0.01*$Y$2+Апрель[[#This Row],[Расход топлива на работу спецоборудования, литр]]),3)+X37,"") ->  | O37: =IFERROR(IF(Апрель[[#Totals],[Выдано топливо, литр]]=0,0,(ROUND(Апрель[[#This Row],[Расход топлива по норме, литр]]/IF(DAY([Дата])<=18,$W$2,$W$3),0)))+Y37,) -> 0 | P37: =IFERROR(IF(Апрель[[#Totals],[Выдано топливо, литр]]=0,0,(ROUND(Апрель[[#This Row],[Расход топлива по норме, литр]]/VLOOKUP([Дата],S$2:W$3,5),0)))+Y37,) -> 0 | R37: =Апрель[[#This Row],[Дата]] ->  | Z37: =Апрель[[#This Row],[Дата]] -> 
A38: Итог | E38: =SUBTOTAL(109,[Пройдено за день, км]) -> 1690 | F38: =SUBTOTAL(109,[Выдано топливо, литр]) -> 980 | J38: =SUBTOTAL(109,[Работа спецоборудования за день, м/ч]) -> 104 | K38: =SUBTOTAL(109,[Количество ходок]) -> 52 | L38: =SUBTOTAL(109,[Расход топлива на работу спецоборудования, литр]) -> 520 | N38: =SUBTOTAL(109,[Расход топлива по норме, литр]) -> 1239.94 | O38: =SUBTOTAL(109,[Фактический расход топлива, литр]) -> 835 | P38: =SUBTOTAL(109,[Отклонение от нормы (Перерасход(+), экономия(-)), литр]) -> 1240 | R38: 1-я пол. | S38: =SUMIFS(S$7:S$37,INDIRECT("Апрель[Дата]"),">="&$S$2,INDIRECT("Апрель[Дата]"),"<="&$T$2)+IF(MONTH($T$2)<>MONTH($S$2),INDIRECT(TEXT($A$7-1,"ММММ")&"!F38")-SUM(INDIRECT(TEXT($A$7-1,"ММММ")&"!V1:V2"))) -> 0 | T38: =SUMIFS(T$7:T$37,INDIRECT("Апрель[Дата]"),">="&$S$2,INDIRECT("Апрель[Дата]"),"<="&$T$2)+IF(MONTH($T$2)<>MONTH($S$2),INDIRECT(TEXT($A$7-1,"ММММ")&"!F38")-SUM(INDIRECT(TEXT($A$7-1,"ММММ")&"!V1:V2"))) -> 0 | U38: =SUMIFS(U$7:U$37,INDIRECT("Апрель[Дата]"),">="&$S$2,INDIRECT("Апрель[Дата]"),"<="&$T$2)+IF(MONTH($T$2)<>MONTH($S$2),INDIRECT(TEXT($A$7-1,"ММММ")&"!F38")-SUM(INDIRECT(TEXT($A$7-1,"ММММ")&"!V1:V2"))) -> 0 | V38: 0 | W38: 0 | X38: 0 | Y38: 0 | Z38: 1-я пол.
K39: =SUMIFS(K7:K37,A7:A37,">="&$S$2,A7:A37,"<="&$T$2) -> 0 | R39: 2-я пол. | S39: =SUMIFS(S$7:S$37,INDIRECT("Апрель[Дата]"),">="&$S$3,INDIRECT("Апрель[Дата]"),"<="&$T$3)+IF(MONTH($T$3)<>MONTH($S$3),INDIRECT(TEXT($A$7-1,"ММММ")&"!F38")-SUM(INDIRECT(TEXT($A$7-1,"ММММ")&"!V1:V2"))) -> 0 | T39: =SUMIFS(T$7:T$37,INDIRECT("Апрель[Дата]"),">="&$S$3,INDIRECT("Апрель[Дата]"),"<="&$T$3)+IF(MONTH($T$3)<>MONTH($S$3),INDIRECT(TEXT($A$7-1,"ММММ")&"!F38")-SUM(INDIRECT(TEXT($A$7-1,"ММММ")&"!V1:V2"))) -> 0 | U39: 260 | V39: 0 | W39: 0 | X39: 0 | Y39: 0 | Z39: 2-я пол.
K40: =SUMIFS(K7:K37,A7:A37,">="&$S$3,A7:A37,"<="&$T$3) -> 52

Sheet ТС
G1: Зима : | H1: 01.11 - 31.03 | L1: Зима : | M1: 01.11 - 31.03 | P1: Расчет максимальной нормы расхода ДТ (литр/100км)
G2: Лето: | H2: 01.04 - 30.10 | L2: Лето: | M2: 01.04 - 30.10
G3: доп.коэфф-т к норме | L3: доп.коэфф-т к норме
A4: № п/п | B4: Номер гос.регистрации / Заводской номер | C4: Километраж, км | D4: Спецоборудование, м/ч | E4: Топливо, л | F4: Базовая норма расхода на 100 км | G4: Зима | H4: Лето | I4: Итога норма а/м ЗИМА | J4: Итога норма а/м ЛЕТО | K4: Базовая норма расхода на 1 мото/час | L4: "Зима" | M4: "Лето" | N4: Итога норма а/м "ЗИМА" | O4: Итога норма а/м "ЛЕТО" | P4: Норма на 100 км, литров | Q4: движение с манипулятором | R4: Тоннаж | S4: Литры | T4: На движение с грузом | U4: Тоннаж1 | V4: К-т загрузки | W4: ИТОГ | X4: 25% за работу в городе с населением свыше 3 млн. человек | Y4: 10 % за работу зимой
A5: 1 | B5: Норма 1 | C5: 23190 | D5: 1306 | E5: 350 | F5: 42.6 | G5: 10 | H5: 0 | I5: =F5*(100+G5)% -> 46.86 | J5: =F5*(100+H5)% -> 42.6 | K5: 5 | L5: 10 | M5: 0 | N5: =K5*(100+L5)% -> 5.5 | O5: =K5*(100+M5)% -> 5 | P5: 32.2 | Q5: =R5*S5 -> 2.938 | R5: 2.26 | S5: 1.3 | T5: =U5*V5*S5 -> 5.2 | U5: 8 | V5: 0.5 | W5: =P5+Q5+T5 -> 40.338 | X5: =W5*25%+W5 -> 50.4225 | Y5: =W5*10%+X5 -> 54.4563
A6: 2 | B6: Норма 2 | E6: 350 | F6: =F5-F5*5% -> 40.47 | G6: 10 | H6: 0 | I6: =F6*(100+G6)% -> 44.517 | J6: =F6*(100+H6)% -> 40.47 | K6: =K5-K5*5% -> 4.75 | L6: 10 | M6: 0 | N6: =K6*(100+L6)% -> 5.225 | O6: =K6*(100+M6)% -> 4.75 | P6: 32.2 | Q6: =R6*S6 -> 2.938 | R6: 2.26 | S6: 1.3 | T6: =U6*V6*S6 -> 5.2 | U6: 8 | V6: 0.5 | W6: =P6+Q6+T6 -> 40.338 | X6: =W6*25%+W6 -> 50.4225 | Y6: =W6*10%+X6 -> 54.4563
A7: 3 | B7: Норма 3 | E7: 350 | F7: =F5-F5*10% -> 38.34 | G7: 10 | H7: 0 | I7: =F7*(100+G7)% -> 42.174 | J7: 38.34 | K7: =K5-K5*10% -> 4.5 | L7: 10 | M7: 0 | N7: =K7*(100+L7)% -> 4.95 | O7: =K7*(100+M7)% -> 4.5 | P7: 32.2 | Q7: =R7*S7 -> 2.938 | R7: 2.26 | S7: 1.3 | T7: =U7*V7*S7 -> 5.2 | U7: 8 | V7: 0.5 | W7: =P7+Q7+T7 -> 40.338 | X7: =W7*25%+W7 -> 50.4225 | Y7: =W7*10%+X7 -> 54.4563
A8: 4 | B8: Переход 1 | E8: 350 | F8: 46.86 | G8: 10 | H8: 0 | I8: =F8*(100+G8)% -> 51.546 | J8: =F8*(100+H8)% -> 46.86 | K8: 5.5 | L8: 10 | M8: 0 | N8: =K8*(100+L8)% -> 6.05 | O8: =K8*(100+M8)% -> 5.5 | Q8: =R8*S8 -> 0 | T8: =U8*V8*S8 -> 0 | W8: =P8+Q8+T8 -> 0 | X8: =W8*25%+W8 -> 0 | Y8: =W8*10%+X8 -> 0
A9: 5 | B9: Переход 2 | E9: 350 | F9: =F8-F8*5% -> 44.517 | G9: 10 | H9: 0 | I9: =F9*(100+G9)% -> 48.9687 | J9: =F9*(100+H9)% -> 44.517 | K9: =K8-K8*5% -> 5.225 | L9: 10 | M9: 0 | N9: =K9*(100+L9)% -> 5.7475 | O9: =K9*(100+M9)% -> 5.225 | Q9: =R9*S9 -> 0 | T9: =U9*V9*S9 -> 0 | W9: =P9+Q9+T9 -> 0 | X9: =W9*25%+W9 -> 0 | Y9: =W9*10%+X9 -> 0
A10: 6 | B10: Переход 3 | E10: 350 | F10: =F8-F8*10% -> 42.174 | G10: 10 | H10: 0 | I10: =F10*(100+G10)% -> 46.3914 | J10: 42.174 | K10: =K8-K8*10% -> 4.95 | L10: 10 | M10: 0 | N10: =K10*(100+L10)% -> 5.445 | O10: =K10*(100+M10)% -> 4.95 | Q10: =R10*S10 -> 0 | T10: =U10*V10*S10 -> 0 | W10: =P10+Q10+T10 -> 0 | X10: =W10*25%+W10 -> 0 | Y10: =W10*10%+X10 -> 0
B12: Зима
B13: Лето
B15: Январь
B16: Февраль
B17: Март
B18: Апрель
B19: Май
B20: Июнь
B21: Июль
B22: Август
B23: Сентябрь
B24: Октябрь
B25: Ноябрь
B26: Декабрь
B28: Норма 1
B29: Норма 2
B30: Норма 3
B31: Переход 1
B32: Переход 2
B33: Переход 3

Sheet Сотрудники
B1: Ф.И.О.
B2: Зяблов А.А
B3: Ильин А.Г.
B4: Ильин Е.Н.
B5: Ильичев Ю.Ф.
B6: Кобалян М.В.
B7: Лагутенко А.А.
B8: Малышев О.С.
B9: Никляев В.А.
B10: Сергеев Д.О.
B11: Ястребов Е.В.
